Workbook

Sheet Man Page RoundToSum
A1: Name
A3: RoundToSum – Rounding values preserving their rounded sum
A5: Synopsis
A7: RoundToSum(vInput, [lDigits], [bAbsSum], [lErrorType])
A9: Description
A11: RoundToSum rounds values without altering their rounded sum. It uses the largest remainder
A12: method to minimize the error compared to the commonly used half-up rounding method.
A13: If the error is identical for one or more values, the first value(s) encountered will be adjusted.
A15: Note: This solution is limited to one-dimensional tables without subtotals. There is no general
A16: solution for higher-dimensional tables or tables with subtotals.
A18: Example
A20: If you need to distribute 1 EUR to three people, all of them should get 1/3 EUR but you need to amend this to whole cents:
A29: Options
A31: vInput
B32: Range or array containing the unrounded input values
A34: lDigits
B35: Optional, default value is 2. The number of digits to round to. For example: 0 rounds
B36: to integers, 2 rounds to the nearest cent, -3 rounds to the nearest thousand
A38: bAbsSum
B39: Optional, default value is TRUE. TRUE rounds the values directly which you often
B40: need for accounting calculations. FALSE adjusts the percentages so they sum to
B41: exactly 100%. This is frequently used in presentations of percentage distributions
A43: lErrorType
B44: Optional, default value is 1. The type of error to minimize: 1 for absolute error, 2 for
B45: relative error. The absolute error you normally minimize for values you need to book
B46: in general ledgers. For statistical distributions you often minimize the relative error
B47: to avoid amendments in the tails of the distributions.
A49: See Also
B50: https://www.experts-exchange.com/articles/31683/Round-elements-of-a-sum-to-match-a-total.html
B51: https://www.think-cell.com/en/support/manual/exceldatarounding.shtml
A53: Further Reading
B54: Mosteller, Youtz and Zahn: "The Distributions of Sums of Rounded Percentages", Demography (1967), 4, p. 850 - 858
B55: Diaconis and Freedman: "On Rounding Percentages", Journal of the American Statistical Association, Vol. 74, No. 366. (Jun., 1979), pp. 359-364

Sheet RoundToSum
C1: bAbsSum | D1: TRUE | E1: lErrorType | F1: 1 | G1: Total objective
C2: Decimals to round to: | D2: -3 | G2: Difference to rounded | K2: =IF(SUM(K4:K16,K21:K24,K29:K33)<10000000000000,"Identical","Different") -> Identical
B3: Absolute values | C3: Relative values | D3: Rounded values | E3: Error | F3: Rank of | G3: =ROUND(IF($D$1,SUM(B5:B16),SUM(C5:C16)),$D$2) -> 682000 | H3: Result | I3: VBA | J3: Lambda | K3: Difference
A4: Total | B4: =SUM(B5:B16) -> 681709 | C4: =SUM(C5:C16) -> 100 | D4: =SUM(D5:D16) -> 684000 | F4: error | G4: =G3-D4 -> -2000 | H4: =SUM(H5:H16) -> 682000 | I4: =SUM(I5:I16) -> 682000 | J4: =SUM(J5:J16) -> 682000 | K4: =ABS(I4-H4)+ABS(J4-H4) -> 0
A5: 1 | B5: 4523 | C5: =B5/$B$4% -> 0.6634795785 | D5: =ROUND(IF($D$1,B5,C5),$D$2) -> 5000 | E5: =CHOOSE($F$1,D5-IF($D$1,B5,C5),(D5-IF($D$1,B5,C5))*IF($D$1,B5,C5)) -> 477 | F5: =COUNTIF($E$5:$E$16,IF($G$4>0,"<",">")&$E5)+COUNTIF($E$5:$E5,$E5) -> 3 | G5: =IF(F5<=ROUND(ABS($G$4*10^$D$2),0),SIGN($G$4)*10^-$D$2,0) -> 0 | H5: =D5+G5 -> 5000 | I5: =RoundToSum(B5:B16,D2,D1,F1) -> 5000 | J5: =Round2Sum(B5:B16,D2,D1,F1) -> 5000 | K5: =ABS(I5-H5)+ABS(J5-H5) -> 0
A6: 2 | B6: 456 | C6: =B6/$B$4% -> 0.06689071143 | D6: =ROUND(IF($D$1,B6,C6),$D$2) -> 0 | E6: -456 | F6: =COUNTIF($E$5:$E$16,IF($G$4>0,"<",">")&$E6)+COUNTIF($E$5:$E6,$E6) -> 12 | G6: =IF(F6<=ROUND(ABS($G$4*10^$D$2),0),SIGN($G$4)*10^-$D$2,0) -> 0 | H6: =D6+G6 -> 0 | I6: 0 | J6: 0 | K6: 0
A7: 3 | B7: -78845 | C7: -11.5657854 | D7: -79000 | E7: -155 | F7: =COUNTIF($E$5:$E$16,IF($G$4>0,"<",">")&$E7)+COUNTIF($E$5:$E7,$E7) -> 11 | G7: 0 | H7: -79000 | I7: -79000 | J7: -79000 | K7: 0
A8: 4 | B8: -14491 | C8: -2.12568706 | D8: -14000 | E8: 491 | F8: =COUNTIF($E$5:$E$16,IF($G$4>0,"<",">")&$E8)+COUNTIF($E$5:$E8,$E8) -> 1 | G8: -1000 | H8: -15000 | I8: -15000 | J8: -15000 | K8: 0
A9: 5 | B9: 65789 | C9: 9.650598716 | D9: 66000 | E9: 211 | F9: =COUNTIF($E$5:$E$16,IF($G$4>0,"<",">")&$E9)+COUNTIF($E$5:$E9,$E9) -> 7 | G9: 0 | H9: 66000 | I9: 66000 | J9: 66000 | K9: 0
A10: 6 | B10: 129512 | C10: 18.99813557 | D10: 130000 | E10: 488 | F10: =COUNTIF($E$5:$E$16,IF($G$4>0,"<",">")&$E10)+COUNTIF($E$5:$E10,$E10) -> 2 | G10: -1000 | H10: 129000 | I10: 129000 | J10: 129000 | K10: 0
A11: 7 | B11: 15562 | C11: 2.282792218 | D11: 16000 | E11: 438 | F11: =COUNTIF($E$5:$E$16,IF($G$4>0,"<",">")&$E11)+COUNTIF($E$5:$E11,$E11) -> 5 | G11: 0 | H11: 16000 | I11: 16000 | J11: 16000 | K11: 0
A12: 8 | B12: 548555 | C12: 80.46761888 | D12: 549000 | E12: 445 | F12: =COUNTIF($E$5:$E$16,IF($G$4>0,"<",">")&$E12)+COUNTIF($E$5:$E12,$E12) -> 4 | G12: 0 | H12: 549000 | I12: 549000 | J12: 549000 | K12: 0
A13: 9 | B13: 1590 | C13: 0.2332373491 | D13: 2000 | E13: 410 | F13: =COUNTIF($E$5:$E$16,IF($G$4>0,"<",">")&$E13)+COUNTIF($E$5:$E13,$E13) -> 6 | G13: 0 | H13: 2000 | I13: 2000 | J13: 2000 | K13: 0
A14: 10 | B14: -897 | C14: -0.1315810705 | D14: -1000 | E14: -103 | F14: =COUNTIF($E$5:$E$16,IF($G$4>0,"<",">")&$E14)+COUNTIF($E$5:$E14,$E14) -> 10 | G14: 0 | H14: -1000 | I14: -1000 | J14: -1000 | K14: 0
A15: 11 | B15: 6968 | C15: 1.022137012 | D15: 7000 | E15: 32 | F15: =COUNTIF($E$5:$E$16,IF($G$4>0,"<",">")&$E15)+COUNTIF($E$5:$E15,$E15) -> 8 | G15: 0 | H15: 7000 | I15: 7000 | J15: 7000 | K15: 0
A16: 12 | B16: 2987 | C16: 0.4381634979 | D16: 3000 | E16: 13 | F16: =COUNTIF($E$5:$E$16,IF($G$4>0,"<",">")&$E16)+COUNTIF($E$5:$E16,$E16) -> 9 | G16: 0 | H16: 3000 | I16: 3000 | J16: 3000 | K16: 0
C18: bAbsSum | D18: FALSE | G18: Total objective
C19: Decimals to round to: | D19: 2 | G19: Difference to rounded
B20: Absolute values | C20: Relative values | D20: Rounded values | E20: Error | F20: Rank of | G20: =ROUND(IF($D$18,SUM(B22:B24),SUM(C22:C24)),$D$19) -> 100 | H20: Result | I20: VBA | J20: Lambda | K20: Result
A21: Total | B21: =SUM(B22:B24) -> 611 | C21: =SUM(C22:C24) -> 100 | D21: =SUM(D22:D24) -> 99.99 | F21: error | G21: =G20-D21 -> 0.01 | H21: =SUM(H22:H24) -> 100 | I21: =SUM(I22:I24) -> 100 | J21: =SUM(J22:J24) -> 100 | K21: =ABS(I21-H21)+ABS(J21-H21) -> 0
A22: 1 | B22: 45 | C22: =B22/$B$21% -> 7.36497545 | D22: =ROUND(IF($D$18,B22,C22),$D$19) -> 7.36 | E22: =CHOOSE($F$1,D22-IF($D$18,B22,C22),(D22-IF($D$18,B22,C22))*IF($D$18,B22,C22)) -> -0.004975450082 | F22: =COUNTIF($E$22:$E$24,IF($G$21>0,"<",">")&$E22)+COUNTIF($E$22:$E22,$E22) -> 1 | G22: =IF(F22<=ROUND(ABS($G$21*10^$D$19),0),SIGN($G$21)*10^-$D$19,0) -> 0.01 | H22: =D22+G22 -> 7.37 | I22: =RoundToSum(B22:B24,D19,D18,F1) -> 7.37 | J22: =Round2Sum(B22:B24,D19,D18,F1) -> 7.37 | K22: 0
A23: 2 | B23: 555 | C23: =B23/$B$21% -> 90.83469722 | D23: =ROUND(IF($D$18,B23,C23),$D$19) -> 90.83 | E23: =CHOOSE($F$1,D23-IF($D$18,B23,C23),(D23-IF($D$18,B23,C23))*IF($D$18,B23,C23)) -> -0.004697217676 | F23: =COUNTIF($E$22:$E$24,IF($G$21>0,"<",">")&$E23)+COUNTIF($E$22:$E23,$E23) -> 2 | G23: =IF(F23<=ROUND(ABS($G$21*10^$D$19),0),SIGN($G$21)*10^-$D$19,0) -> 0 | H23: =D23+G23 -> 90.83 | I23: 90.83 | J23: 90.83 | K23: 0
A24: 3 | B24: 11 | C24: 1.800327332 | D24: 1.8 | E24: =CHOOSE($F$1,D24-IF($D$18,B24,C24),(D24-IF($D$18,B24,C24))*IF($D$18,B24,C24)) -> -0.0003273322422 | F24: =COUNTIF($E$22:$E$24,IF($G$21>0,"<",">")&$E24)+COUNTIF($E$22:$E24,$E24) -> 3 | G24: 0 | H24: 1.8 | I24: 1.8 | J24: 1.8 | K24: 0
C26: bAbsSum | D26: TRUE | G26: Total objective
C27: Decimals to round to: | D27: 3 | G27: Difference to rounded
B28: Absolute values | C28: Relative values | D28: Rounded values | E28: Error | F28: Rank of | G28: =ROUND(IF($D$26,SUM(B30:B33),SUM(C30:C33)),$D$27) -> 1.881 | H28: Result | I28: VBA | J28: Lambda | K28: Result
A29: Total | B29: =SUM(B30:B33) -> 1.880739181 | C29: =SUM(C30:C33) -> 100 | D29: =SUM(D30:D33) -> 1.881 | F29: error | G29: =G28-D29 -> 0 | H29: =SUM(H30:H33) -> 1.881 | I29: =SUM(I30:I33) -> 1.881 | J29: =SUM(J30:J33) -> 1.881 | K29: =ABS(I29-H29)+ABS(J29-H29) -> 0
A30: 1 | B30: =RAND() -> 0.384807374 | C30: =B30/$B$29% -> 20.46043268 | D30: =ROUND(IF($D$26,B30,C30),$D$27) -> 0.385 | E30: =CHOOSE($F$1,D30-IF($D$26,B30,C30),(D30-IF($D$26,B30,C30))*IF($D$26,B30,C30)) -> 0.0001926259979 | F30: =COUNTIF($E$30:$E$34,IF($G$29>0,"<",">")&$E30)+COUNTIF($E$30:$E30,$E30) -> 2 | G30: =IF(F30<=ROUND(ABS($G$29*10^$D$27),0),SIGN($G$29)*10^-$D$27,0) -> 0 | H30: =D30+G30 -> 0.385 | I30: =RoundToSum(B30:B33,D27,D26,F1) -> 0.385 | J30: =Round2Sum(B30:B33,D27,D26,F1) -> 0.385 | K30: 0
A31: 2 | B31: =RAND() -> 0.9114941876 | C31: =B31/$B$29% -> 48.46467796 | D31: =ROUND(IF($D$26,B31,C31),$D$27) -> 0.911 | E31: =CHOOSE($F$1,D31-IF($D$26,B31,C31),(D31-IF($D$26,B31,C31))*IF($D$26,B31,C31)) -> -0.0004941875848 | F31: =COUNTIF($E$30:$E$34,IF($G$29>0,"<",">")&$E31)+COUNTIF($E$30:$E31,$E31) -> 4 | G31: =IF(F31<=ROUND(ABS($G$29*10^$D$27),0),SIGN($G$29)*10^-$D$27,0) -> 0 | H31: =D31+G31 -> 0.911 | I31: 0.911 | J31: 0.911 | K31: 0
A32: 3 | B32: 0.213529926 | C32: 11.3535108 | D32: 0.214 | E32: =CHOOSE($F$1,D32-IF($D$26,B32,C32),(D32-IF($D$26,B32,C32))*IF($D$26,B32,C32)) -> 0.0004700739611 | F32: =COUNTIF($E$30:$E$34,IF($G$29>0,"<",">")&$E32)+COUNTIF($E$30:$E32,$E32) -> 1 | G32: 0 | H32: 0.214 | I32: 0.214 | J32: 0.214 | K32: 0
A33: 4 | B33: 0.3709076938 | C33: 19.72137856 | D33: 0.371 | E33: =CHOOSE($F$1,D33-IF($D$26,B33,C33),(D33-IF($D$26,B33,C33))*IF($D$26,B33,C33)) -> 9.230623735e-05 | F33: =COUNTIF($E$30:$E$34,IF($G$29>0,"<",">")&$E33)+COUNTIF($E$30:$E33,$E33) -> 3 | G33: 0 | H33: 0.371 | I33: 0.371 | J33: 0.371 | K33: 0

Sheet R2S_Review
C1: bAbsSum | D1: =IF(RAND()<0.5,TRUE,FALSE) -> TRUE | E1: lErrorType | F1: =RANDBETWEEN(1,2) -> 2 | G1: Total objective
C2: Decimals to round to: | D2: =RANDBETWEEN(IF(D1,-3,-1),3) -> 0 | G2: Difference to rounded | J2: =IF(AND($H4:$H54=I4:I54),"Identical","Different") -> Identical | L2: =IF(AND($H4:$H54=K4:K54),"Identical","Different") -> Identical
B3: Absolute values | C3: Relative values | D3: Rounded values | E3: Error | F3: Rank of | G3: =ROUND(IF($D$1,SUM(B5:B54),SUM(C5:C54)),$D$2) -> 235 | H3: Result | I3: VBA | J3: Difference | K3: Lambda | L3: Difference
A4: Total | B4: =SUM(B5:B54) -> 234.9933 | C4: =SUM(C5:C54) -> 100 | D4: =SUM(D5:D54) -> 233 | F4: error | G4: =G3-D4 -> 2 | H4: =SUM(H5:H54) -> 235 | I4: =SUM(I5:I54) -> 235 | J4: =I4-$H4 -> 0 | K4: =SUM(K5:K54) -> 235 | L4: =K4-$H4 -> 0
A5: 1 | B5: =ROUND(RAND()*10^(-$D$2+1),4) -> 3.9788 | C5: =B5/$B$4% -> 1.693154656 | D5: =ROUND(IF($D$1,B5,C5),$D$2) -> 4 | E5: =CHOOSE($F$1,D5-IF($D$1,B5,C5),(D5-IF($D$1,B5,C5))*IF($D$1,B5,C5)) -> 0.08435056 | F5: =COUNTIF($E$5:$E$54,IF($G$4>0,"<",">")&$E5)+COUNTIF($E$5:$E5,$E5) -> 30 | G5: =IF(F5<=ROUND(ABS($G$4*10^$D$2),0),SIGN($G$4)*10^-$D$2,0) -> 0 | H5: =D5+G5 -> 4 | I5: =RoundToSum(B5:B54,D2,D1,F1) -> 4 | J5: =I5-$H5 -> 0 | K5: =Round2Sum(B5:B54,D2,D1,F1) -> 4 | L5: 0
A6: 2 | B6: 2.7121 | C6: =B6/$B$4% -> 1.154118011 | D6: =ROUND(IF($D$1,B6,C6),$D$2) -> 3 | E6: 0.78081359 | F6: =COUNTIF($E$5:$E$54,IF($G$4>0,"<",">")&$E6)+COUNTIF($E$5:$E6,$E6) -> 39 | G6: =IF(F6<=ROUND(ABS($G$4*10^$D$2),0),SIGN($G$4)*10^-$D$2,0) -> 0 | H6: =D6+G6 -> 3 | I6: 3 | J6: 0 | K6: 3 | L6: 0
A7: 3 | B7: 0.1674 | C7: 0.07123607354 | D7: 0 | E7: -0.02802276 | F7: =COUNTIF($E$5:$E$54,IF($G$4>0,"<",">")&$E7)+COUNTIF($E$5:$E7,$E7) -> 26 | G7: 0 | H7: 0 | I7: 0 | J7: 0 | K7: 0 | L7: 0
A8: 4 | B8: 0.626 | C8: 0.2663905737 | D8: 1 | E8: 0.234124 | F8: =COUNTIF($E$5:$E$54,IF($G$4>0,"<",">")&$E8)+COUNTIF($E$5:$E8,$E8) -> 34 | G8: 0 | H8: 1 | I8: 1 | J8: 0 | K8: 1 | L8: 0
A9: 5 | B9: 0.4968 | C9: 0.2114102828 | D9: 0 | E9: -0.24681024 | F9: =COUNTIF($E$5:$E$54,IF($G$4>0,"<",">")&$E9)+COUNTIF($E$5:$E9,$E9) -> 21 | G9: 0 | H9: =D9+G9 -> 0 | I9: 0 | J9: 0 | K9: 0 | L9: 0
A10: 6 | B10: 7.4819 | C10: =B10/$B$4% -> 3.183878008 | D10: =ROUND(IF($D$1,B10,C10),$D$2) -> 7 | E10: -3.60552761 | F10: =COUNTIF($E$5:$E$54,IF($G$4>0,"<",">")&$E10)+COUNTIF($E$5:$E10,$E10) -> 3 | G10: =IF(F10<=ROUND(ABS($G$4*10^$D$2),0),SIGN($G$4)*10^-$D$2,0) -> 0 | H10: =D10+G10 -> 7 | I10: 7 | J10: 0 | K10: 7 | L10: 0
A11: 7 | B11: 0.6124 | C11: 0.2606031746 | D11: 1 | E11: 0.23736624 | F11: =COUNTIF($E$5:$E$54,IF($G$4>0,"<",">")&$E11)+COUNTIF($E$5:$E11,$E11) -> 35 | G11: 0 | H11: 1 | I11: 1 | J11: 0 | K11: 1 | L11: 0
A12: 8 | B12: 8.159 | C12: 3.472013883 | D12: 8 | E12: -1.297281 | F12: =COUNTIF($E$5:$E$54,IF($G$4>0,"<",">")&$E12)+COUNTIF($E$5:$E12,$E12) -> 14 | G12: 0 | H12: 8 | I12: 8 | J12: 0 | K12: 8 | L12: 0
A13: 9 | B13: 2.1299 | C13: 0.9063662666 | D13: 2 | E13: -0.27667401 | F13: =COUNTIF($E$5:$E$54,IF($G$4>0,"<",">")&$E13)+COUNTIF($E$5:$E13,$E13) -> 20 | G13: 0 | H13: 2 | I13: 2 | J13: 0 | K13: 2 | L13: 0
A14: 10 | B14: 5.8216 | C14: 2.477347226 | D14: 6 | E14: 1.03857344 | F14: =COUNTIF($E$5:$E$54,IF($G$4>0,"<",">")&$E14)+COUNTIF($E$5:$E14,$E14) -> 44 | G14: 0 | H14: 6 | I14: 6 | J14: 0 | K14: 6 | L14: 0
A15: 11 | B15: 1.1825 | C15: 0.5032058361 | D15: 1 | E15: -0.21580625 | F15: =COUNTIF($E$5:$E$54,IF($G$4>0,"<",">")&$E15)+COUNTIF($E$5:$E15,$E15) -> 22 | G15: 0 | H15: 1 | I15: 1 | J15: 0 | K15: 1 | L15: 0
A16: 12 | B16: 5.604 | C16: 2.384748842 | D16: 6 | E16: 2.219184 | F16: =COUNTIF($E$5:$E$54,IF($G$4>0,"<",">")&$E16)+COUNTIF($E$5:$E16,$E16) -> 48 | G16: 0 | H16: 6 | I16: 6 | J16: 0 | K16: 6 | L16: 0
A17: 13 | B17: 6.8204 | C17: 2.902380621 | D17: 7 | E17: 1.22494384 | F17: =COUNTIF($E$5:$E$54,IF($G$4>0,"<",">")&$E17)+COUNTIF($E$5:$E17,$E17) -> 45 | G17: 0 | H17: 7 | I17: 7 | J17: 0 | K17: 7 | L17: 0
A18: 14 | B18: 2.9103 | C18: 1.238460841 | D18: 3 | E18: 0.26105391 | F18: =COUNTIF($E$5:$E$54,IF($G$4>0,"<",">")&$E18)+COUNTIF($E$5:$E18,$E18) -> 36 | G18: 0 | H18: 3 | I18: 3 | J18: 0 | K18: 3 | L18: 0
A19: 15 | B19: 9.1532 | C19: 3.895089775 | D19: 9 | E19: -1.40227024 | F19: =COUNTIF($E$5:$E$54,IF($G$4>0,"<",">")&$E19)+COUNTIF($E$5:$E19,$E19) -> 13 | G19: 0 | H19: 9 | I19: 9 | J19: 0 | K19: 9 | L19: 0
A20: 16 | B20: 2.9 | C20: 1.234077738 | D20: 3 | E20: 0.29 | F20: =COUNTIF($E$5:$E$54,IF($G$4>0,"<",">")&$E20)+COUNTIF($E$5:$E20,$E20) -> 37 | G20: 0 | H20: 3 | I20: 3 | J20: 0 | K20: 3 | L20: 0
A21: 17 | B21: 0.6587 | C21: 0.280305864 | D21: 1 | E21: 0.22481431 | F21: =COUNTIF($E$5:$E$54,IF($G$4>0,"<",">")&$E21)+COUNTIF($E$5:$E21,$E21) -> 33 | G21: 0 | H21: 1 | I21: 1 | J21: 0 | K21: 1 | L21: 0
A22: 18 | B22: 2.0752 | C22: 0.8830890072 | D22: 2 | E22: -0.15605504 | F22: =COUNTIF($E$5:$E$54,IF($G$4>0,"<",">")&$E22)+COUNTIF($E$5:$E22,$E22) -> 24 | G22: 0 | H22: 2 | I22: 2 | J22: 0 | K22: 2 | L22: 0
A23: 19 | B23: 5.2297 | C23: 2.225467705 | D23: 5 | E23: -1.20126209 | F23: =COUNTIF($E$5:$E$54,IF($G$4>0,"<",">")&$E23)+COUNTIF($E$5:$E23,$E23) -> 15 | G23: 0 | H23: 5 | I23: 5 | J23: 0 | K23: 5 | L23: 0
A24: 20 | B24: 5.874 | C24: 2.499645735 | D24: 6 | E24: 0.740124 | F24: =COUNTIF($E$5:$E$54,IF($G$4>0,"<",">")&$E24)+COUNTIF($E$5:$E24,$E24) -> 38 | G24: 0 | H24: 6 | I24: 6 | J24: 0 | K24: 6 | L24: 0
A25: 21 | B25: 4.8114 | C25: 2.04746263 | D25: 5 | E25: 0.90743004 | F25: =COUNTIF($E$5:$E$54,IF($G$4>0,"<",">")&$E25)+COUNTIF($E$5:$E25,$E25) -> 42 | G25: 0 | H25: 5 | I25: 5 | J25: 0 | K25: 5 | L25: 0
A26: 22 | B26: 9.2121 | C26: 3.920154319 | D26: 9 | E26: -1.95388641 | F26: =COUNTIF($E$5:$E$54,IF($G$4>0,"<",">")&$E26)+COUNTIF($E$5:$E26,$E26) -> 10 | G26: 0 | H26: 9 | I26: 9 | J26: 0 | K26: 9 | L26: 0
A27: 23 | B27: 5.3331 | C27: 2.269468959 | D27: 5 | E27: -1.77645561 | F27: =COUNTIF($E$5:$E$54,IF($G$4>0,"<",">")&$E27)+COUNTIF($E$5:$E27,$E27) -> 11 | G27: 0 | H27: 5 | I27: 5 | J27: 0 | K27: 5 | L27: 0
A28: 24 | B28: 8.0999 | C28: 3.44686423 | D28: 8 | E28: -0.80918001 | F28: =COUNTIF($E$5:$E$54,IF($G$4>0,"<",">")&$E28)+COUNTIF($E$5:$E28,$E28) -> 17 | G28: 0 | H28: 8 | I28: 8 | J28: 0 | K28: 8 | L28: 0
A29: 25 | B29: 9.3597 | C29: 3.982964621 | D29: 9 | E29: -3.36668409 | F29: =COUNTIF($E$5:$E$54,IF($G$4>0,"<",">")&$E29)+COUNTIF($E$5:$E29,$E29) -> 4 | G29: 0 | H29: 9 | I29: 9 | J29: 0 | K29: 9 | L29: 0
A30: 26 | B30: 0.8582 | C30: 0.3652019015 | D30: 1 | E30: 0.12169276 | F30: =COUNTIF($E$5:$E$54,IF($G$4>0,"<",">")&$E30)+COUNTIF($E$5:$E30,$E30) -> 32 | G30: 0 | H30: 1 | I30: 1 | J30: 0 | K30: 1 | L30: 0
A31: 27 | B31: 7.8977 | C31: 3.360819223 | D31: 8 | E31: 0.80793471 | F31: =COUNTIF($E$5:$E$54,IF($G$4>0,"<",">")&$E31)+COUNTIF($E$5:$E31,$E31) -> 40 | G31: 0 | H31: 8 | I31: 8 | J31: 0 | K31: 8 | L31: 0
A32: 28 | B32: 1.9514 | C32: 0.8304066541 | D32: 2 | E32: 0.09483804 | F32: =COUNTIF($E$5:$E$54,IF($G$4>0,"<",">")&$E32)+COUNTIF($E$5:$E32,$E32) -> 31 | G32: 0 | H32: 2 | I32: 2 | J32: 0 | K32: 2 | L32: 0
A33: 29 | B33: 8.2924 | C33: 3.528781459 | D33: 8 | E33: -2.42469776 | F33: =COUNTIF($E$5:$E$54,IF($G$4>0,"<",">")&$E33)+COUNTIF($E$5:$E33,$E33) -> 7 | G33: 0 | H33: 8 | I33: 8 | J33: 0 | K33: 8 | L33: 0
A34: 30 | B34: 7.4064 | C34: 3.151749433 | D34: 7 | E34: -3.00996096 | F34: =COUNTIF($E$5:$E$54,IF($G$4>0,"<",">")&$E34)+COUNTIF($E$5:$E34,$E34) -> 5 | G34: 0 | H34: 7 | I34: 7 | J34: 0 | K34: 7 | L34: 0
A35: 31 | B35: 9.4939 | C35: =B35/$B$4% -> 4.040072632 | D35: =ROUND(IF($D$1,B35,C35),$D$2) -> 9 | E35: -4.68903721 | F35: =COUNTIF($E$5:$E$54,IF($G$4>0,"<",">")&$E35)+COUNTIF($E$5:$E35,$E35) -> 1 | G35: =IF(F35<=ROUND(ABS($G$4*10^$D$2),0),SIGN($G$4)*10^-$D$2,0) -> 1 | H35: =D35+G35 -> 10 | I35: 10 | J35: 0 | K35: 10 | L35: 0
A36: 32 | B36: 1.0154 | C36: 0.4320974258 | D36: 1 | E36: -0.01563716 | F36: =COUNTIF($E$5:$E$54,IF($G$4>0,"<",">")&$E36)+COUNTIF($E$5:$E36,$E36) -> 27 | G36: 0 | H36: 1 | I36: 1 | J36: 0 | K36: 1 | L36: 0
A37: 33 | B37: 1.1202 | C37: 0.4766944419 | D37: 1 | E37: =CHOOSE($F$1,D37-IF($D$1,B37,C37),(D37-IF($D$1,B37,C37))*IF($D$1,B37,C37)) -> -0.13464804 | F37: =COUNTIF($E$5:$E$54,IF($G$4>0,"<",">")&$E37)+COUNTIF($E$5:$E37,$E37) -> 25 | G37: 0 | H37: 1 | I37: 1 | J37: 0 | K37: 1 | L37: 0
A38: 34 | B38: 7.2786 | C38: 3.097364904 | D38: 7 | E38: -2.02781796 | F38: =COUNTIF($E$5:$E$54,IF($G$4>0,"<",">")&$E38)+COUNTIF($E$5:$E38,$E38) -> 8 | G38: 0 | H38: 7 | I38: 7 | J38: 0 | K38: 7 | L38: 0
A39: 35 | B39: 0.9534 | C39: 0.4057136948 | D39: 1 | E39: 0.04442844 | F39: =COUNTIF($E$5:$E$54,IF($G$4>0,"<",">")&$E39)+COUNTIF($E$5:$E39,$E39) -> 28 | G39: 0 | H39: 1 | I39: 1 | J39: 0 | K39: 1 | L39: 0
A40: 36 | B40: 2.6469 | C40: 1.126372539 | D40: 3 | E40: 0.93462039 | F40: =COUNTIF($E$5:$E$54,IF($G$4>0,"<",">")&$E40)+COUNTIF($E$5:$E40,$E40) -> 43 | G40: 0 | H40: 3 | I40: 3 | J40: 0 | K40: 3 | L40: 0
A41: 37 | B41: 8.4378 | C41: 3.590655563 | D41: 8 | E41: -3.69406884 | F41: =COUNTIF($E$5:$E$54,IF($G$4>0,"<",">")&$E41)+COUNTIF($E$5:$E41,$E41) -> 2 | G41: 1 | H41: 9 | I41: 9 | J41: 0 | K41: 9 | L41: 0
A42: 38 | B42: 3.5008 | C42: 1.489744601 | D42: 4 | E42: 1.74759936 | F42: =COUNTIF($E$5:$E$54,IF($G$4>0,"<",">")&$E42)+COUNTIF($E$5:$E42,$E42) -> 46 | G42: 0 | H42: 4 | I42: 4 | J42: 0 | K42: 4 | L42: 0
A43: 39 | B43: 1.3232 | C43: 0.5630798836 | D43: 1 | E43: -0.42765824 | F43: =COUNTIF($E$5:$E$54,IF($G$4>0,"<",">")&$E43)+COUNTIF($E$5:$E43,$E43) -> 19 | G43: 0 | H43: 1 | I43: 1 | J43: 0 | K43: 1 | L43: 0
A44: 40 | B44: 5.3699 | C44: 2.28512898 | D44: 5 | E44: -1.98632601 | F44: =COUNTIF($E$5:$E$54,IF($G$4>0,"<",">")&$E44)+COUNTIF($E$5:$E44,$E44) -> 9 | G44: 0 | H44: 5 | I44: 5 | J44: 0 | K44: 5 | L44: 0
A45: 41 | B45: 7.0849 | C45: =B45/$B$4% -> 3.014937022 | D45: =ROUND(IF($D$1,B45,C45),$D$2) -> 7 | E45: -0.60150801 | F45: =COUNTIF($E$5:$E$54,IF($G$4>0,"<",">")&$E45)+COUNTIF($E$5:$E45,$E45) -> 18 | G45: =IF(F45<=ROUND(ABS($G$4*10^$D$2),0),SIGN($G$4)*10^-$D$2,0) -> 0 | H45: =D45+G45 -> 7 | I45: 7 | J45: 0 | K45: 7 | L45: 0
A46: 42 | B46: 7.5304 | C46: 3.204516895 | D46: 8 | E46: 3.53627584 | F46: =COUNTIF($E$5:$E$54,IF($G$4>0,"<",">")&$E46)+COUNTIF($E$5:$E46,$E46) -> 50 | G46: 0 | H46: 8 | I46: 8 | J46: 0 | K46: 8 | L46: 0
A47: 43 | B47: 0.9365 | C47: 0.3985220004 | D47: 1 | E47: 0.05946775 | F47: =COUNTIF($E$5:$E$54,IF($G$4>0,"<",">")&$E47)+COUNTIF($E$5:$E47,$E47) -> 29 | G47: 0 | H47: 1 | I47: 1 | J47: 0 | K47: 1 | L47: 0
A48: 44 | B48: 5.5662 | C48: 2.368663277 | D48: 6 | E48: 2.41461756 | F48: =COUNTIF($E$5:$E$54,IF($G$4>0,"<",">")&$E48)+COUNTIF($E$5:$E48,$E48) -> 49 | G48: 0 | H48: 6 | I48: 6 | J48: 0 | K48: 6 | L48: 0
A49: 45 | B49: 5.2733 | C49: 2.244021425 | D49: 5 | E49: -1.44119289 | F49: =COUNTIF($E$5:$E$54,IF($G$4>0,"<",">")&$E49)+COUNTIF($E$5:$E49,$E49) -> 12 | G49: 0 | H49: 5 | I49: 5 | J49: 0 | K49: 5 | L49: 0
A50: 46 | B50: 0.4608 | C50: 0.1960906971 | D50: 0 | E50: -0.21233664 | F50: =COUNTIF($E$5:$E$54,IF($G$4>0,"<",">")&$E50)+COUNTIF($E$5:$E50,$E50) -> 23 | G50: 0 | H50: 0 | I50: 0 | J50: 0 | K50: 0 | L50: 0
A51: 47 | B51: 7.8919 | C51: 3.358351068 | D51: 8 | E51: 0.85311439 | F51: =COUNTIF($E$5:$E$54,IF($G$4>0,"<",">")&$E51)+COUNTIF($E$5:$E51,$E51) -> 41 | G51: 0 | H51: 8 | I51: 8 | J51: 0 | K51: 8 | L51: 0
A52: 48 | B52: 3.2508 | C52: 1.383358589 | D52: 3 | E52: -0.81530064 | F52: =COUNTIF($E$5:$E$54,IF($G$4>0,"<",">")&$E52)+COUNTIF($E$5:$E52,$E52) -> 16 | G52: 0 | H52: 3 | I52: 3 | J52: 0 | K52: 3 | L52: 0
A53: 49 | B53: 8.7519 | C53: 3.724318949 | D53: 9 | E53: 2.17134639 | F53: =COUNTIF($E$5:$E$54,IF($G$4>0,"<",">")&$E53)+COUNTIF($E$5:$E53,$E53) -> 47 | G53: 0 | H53: 9 | I53: 9 | J53: 0 | K53: 9 | L53: 0
A54: 50 | B54: 9.2903 | C54: 3.953431864 | D54: 9 | E54: -2.69697409 | F54: =COUNTIF($E$5:$E$54,IF($G$4>0,"<",">")&$E54)+COUNTIF($E$5:$E54,$E54) -> 6 | G54: 0 | H54: 9 | I54: 9 | J54: 0 | K54: 9 | L54: 0

Sheet Read_me
A1: Original (German) from: https://www.controllingportal.de/Marktplatz/Excel-Tools/Gemeinkostenumlage.html
A2: Downloaded on: 20/01/2018 11:21:00
A4: 1. Original was wrong: 2_Umlage!C11 should read: ='1_Umlage'!J28
A5: 2. Graphic gemeinkostenumlage-1.gif on https://www.controllingportal.de/Marktplatz/Excel-Tools/Gemeinkostenumlage.html also showed wrong value 625.
A6: 3. This calculation corrects this error and is calculating correctly down to the cent so that the rounded sum is identical to the sum of rounded values.
A7: 4. Now this calculation is fit for purpose with existing accounting systems.
A9: Bernd Plumhoff
A10: 2018-01-21T11:20:00

Sheet Keys
A1: Phase 1 - Allocation of overhead costs to all cost centers
A3: Key | B3: per Head | C3: sqm | D3: uniform | E3: Weighted
A4: Total | B4: =SUM(B5:B18) -> 102 | C4: =SUM(C5:C18) -> 2685 | D4: =SUM(D5:D18) -> 14 | E4: =SUM(E5:E18) -> 16
A5: Management | B5: 1 | C5: 50 | D5: 1 | E5: 2
A6: Secretariat | B6: 1 | C6: 40 | D6: 1 | E6: 1
A7: Accounting | B7: 3 | C7: 100 | D7: 1 | E7: 1
A8: Controlling | B8: 1 | C8: 30 | D8: 1 | E8: 1
A9: HR | B9: 2 | C9: 50 | D9: 1 | E9: 1
A10: Marketing | B10: 3 | C10: 50 | D10: 1 | E10: 2
A11: Trainees | B11: 3 | D11: 1 | E11: 1
A12: Workers Council | B12: 1 | C12: 15 | D12: 1 | E12: 1
A13: Factory 1 | B13: 12 | C13: 250 | D13: 1 | E13: 1
A14: Factory 2 | B14: 10 | C14: 350 | D14: 1 | E14: 1
A15: Car Park | C15: 100 | D15: 1 | E15: 1
A16: Production1 | B16: 20 | C16: 500 | D16: 1 | E16: 1
A17: Production2 | B17: 20 | C17: 550 | D17: 1 | E17: 1
A18: Production3 | B18: 25 | C18: 600 | D18: 1 | E18: 1
A20: Phase 2 - Allocation of Overhead Cost Centers and Secondary Cost Centers to Primary Cost Centers
A22: Secondary Cost Center | B22: Key | C22: Production1 | D22: Production2 | E22: Production3 | F22: Total
A23: Management | B23: Weighted | C23: 0.3 | D23: 0.4 | E23: 0.3 | F23: =SUM(C23:E23) -> 1
A24: Secretariat | B24: Weighted | C24: 0.4 | D24: 0.5 | E24: 0.1 | F24: 1
A25: Accounting | B25: Weighted | C25: 0.3 | D25: 0.13 | E25: 0.57 | F25: 1
A26: Controlling | B26: uniform | C26: 1 | D26: 1 | E26: 1 | F26: 3
A27: HR | B27: per Head | C27: 20 | D27: 20 | E27: 25 | F27: 65
A28: Marketing | B28: Weighted | C28: 0.3 | D28: 0.42 | E28: 0.28 | F28: 1
A29: Trainees | B29: uniform | C29: 1 | D29: 1 | E29: 1 | F29: 3
A30: Workers Council | B30: per Head | C30: 20 | D30: 20 | E30: 25 | F30: 65
A31: Factory 1 | B31: Weighted | C31: 0.25 | D31: 0.2 | E31: 0.55 | F31: 1
A32: Factory 2 | B32: Weighted | C32: 0.2 | D32: 0.2 | E32: 0.6 | F32: 1
A33: Car Park | B33: Weighted | C33: 0.4 | D33: 0.3 | E33: 0.3 | F33: 1

Sheet 1_Allocation
A1: Allocation of overhead costs to all cost centers
D3: Overhead Cost Centers | L3: Secondary Cost Centers | O3: Primary Cost Centers | R3: Total
A4: Cost Category | B4: Key | C4: Overhead Costs | D4: Management | E4: Secretariat | F4: Accounting | G4: Controlling | H4: HR | I4: Marketing | J4: Trainees | K4: Workers Council | L4: Factory 1 | M4: Factory 2 | N4: Car Park | O4: Production1 | P4: Production2 | Q4: Production3
A5: Travel expenses | B5: Weighted | C5: 10000 | D5: =RoundToSum($C5/INDEX(Keys!B$4:E$4,,MATCH(B5,Keys!$B$3:$E$3,0))*TRANSPOSE(INDEX(Keys!B$5:E$18,,MATCH(B5,Keys!$B$3:$E$3,0)))) -> 1250 | E5: 625 | F5: 625 | G5: 625 | H5: 625 | I5: 1250 | J5: 625 | K5: 625 | L5: 625 | M5: 625 | N5: 625 | O5: 625 | P5: 625 | Q5: 625 | R5: =SUM(D5:Q5) -> 10000
A6: Supervisory board | B6: uniform | C6: 3000 | D6: =RoundToSum($C6/INDEX(Keys!B$4:E$4,,MATCH(B6,Keys!$B$3:$E$3,0))*TRANSPOSE(INDEX(Keys!B$5:E$18,,MATCH(B6,Keys!$B$3:$E$3,0)))) -> 214.28 | E6: 214.28 | F6: 214.28 | G6: 214.28 | H6: 214.28 | I6: 214.28 | J6: 214.29 | K6: 214.29 | L6: 214.29 | M6: 214.29 | N6: 214.29 | O6: 214.29 | P6: 214.29 | Q6: 214.29 | R6: 3000
A7: Hospitality | B7: Weighted | C7: 2000 | D7: =RoundToSum($C7/INDEX(Keys!B$4:E$4,,MATCH(B7,Keys!$B$3:$E$3,0))*TRANSPOSE(INDEX(Keys!B$5:E$18,,MATCH(B7,Keys!$B$3:$E$3,0)))) -> 250 | E7: 125 | F7: 125 | G7: 125 | H7: 125 | I7: 250 | J7: 125 | K7: 125 | L7: 125 | M7: 125 | N7: 125 | O7: 125 | P7: 125 | Q7: 125 | R7: 2000
A8: Presents | B8: Weighted | C8: 1000 | D8: =RoundToSum($C8/INDEX(Keys!B$4:E$4,,MATCH(B8,Keys!$B$3:$E$3,0))*TRANSPOSE(INDEX(Keys!B$5:E$18,,MATCH(B8,Keys!$B$3:$E$3,0)))) -> 125 | E8: 62.5 | F8: 62.5 | G8: 62.5 | H8: 62.5 | I8: 125 | J8: 62.5 | K8: 62.5 | L8: 62.5 | M8: 62.5 | N8: 62.5 | O8: 62.5 | P8: 62.5 | Q8: 62.5 | R8: 1000
A9: Fees, charges | B9: uniform | C9: 500 | D9: =RoundToSum($C9/INDEX(Keys!B$4:E$4,,MATCH(B9,Keys!$B$3:$E$3,0))*TRANSPOSE(INDEX(Keys!B$5:E$18,,MATCH(B9,Keys!$B$3:$E$3,0)))) -> 35.72 | E9: 35.72 | F9: 35.72 | G9: 35.72 | H9: 35.72 | I9: 35.72 | J9: 35.71 | K9: 35.71 | L9: 35.71 | M9: 35.71 | N9: 35.71 | O9: 35.71 | P9: 35.71 | Q9: 35.71 | R9: 500
A10: Car costs | B10: Weighted | C10: 4500 | D10: =RoundToSum($C10/INDEX(Keys!B$4:E$4,,MATCH(B10,Keys!$B$3:$E$3,0))*TRANSPOSE(INDEX(Keys!B$5:E$18,,MATCH(B10,Keys!$B$3:$E$3,0)))) -> 562.5 | E10: 281.25 | F10: 281.25 | G10: 281.25 | H10: 281.25 | I10: 562.5 | J10: 281.25 | K10: 281.25 | L10: 281.25 | M10: 281.25 | N10: 281.25 | O10: 281.25 | P10: 281.25 | Q10: 281.25 | R10: 4500
A11: Hardware, equipment | B11: Weighted | C11: 200 | D11: =RoundToSum($C11/INDEX(Keys!B$4:E$4,,MATCH(B11,Keys!$B$3:$E$3,0))*TRANSPOSE(INDEX(Keys!B$5:E$18,,MATCH(B11,Keys!$B$3:$E$3,0)))) -> 25 | E11: 12.5 | F11: 12.5 | G11: 12.5 | H11: 12.5 | I11: 25 | J11: 12.5 | K11: 12.5 | L11: 12.5 | M11: 12.5 | N11: 12.5 | O11: 12.5 | P11: 12.5 | Q11: 12.5 | R11: 200
A12: External audit | B12: uniform | C12: 10000 | D12: =RoundToSum($C12/INDEX(Keys!B$4:E$4,,MATCH(B12,Keys!$B$3:$E$3,0))*TRANSPOSE(INDEX(Keys!B$5:E$18,,MATCH(B12,Keys!$B$3:$E$3,0)))) -> 714.28 | E12: 714.28 | F12: 714.28 | G12: 714.28 | H12: 714.28 | I12: 714.28 | J12: 714.29 | K12: 714.29 | L12: 714.29 | M12: 714.29 | N12: 714.29 | O12: 714.29 | P12: 714.29 | Q12: 714.29 | R12: 10000
A13: Other operating expenses | B13: sqm | C13: 5500 | D13: =RoundToSum($C13/INDEX(Keys!B$4:E$4,,MATCH(B13,Keys!$B$3:$E$3,0))*TRANSPOSE(INDEX(Keys!B$5:E$18,,MATCH(B13,Keys!$B$3:$E$3,0)))) -> 102.42 | E13: 81.94 | F13: 204.84 | G13: 61.45 | H13: 102.42 | I13: 102.42 | J13: 0 | K13: 30.73 | L13: 512.1 | M13: 716.95 | N13: 204.84 | O13: 1024.21 | P13: 1126.63 | Q13: 1229.05 | R13: 5500
A14: Energy costs | B14: sqm | C14: 6000 | D14: =RoundToSum($C14/INDEX(Keys!B$4:E$4,,MATCH(B14,Keys!$B$3:$E$3,0))*TRANSPOSE(INDEX(Keys!B$5:E$18,,MATCH(B14,Keys!$B$3:$E$3,0)))) -> 111.73 | E14: 89.39 | F14: 223.47 | G14: 67.04 | H14: 111.73 | I14: 111.73 | J14: 0 | K14: 33.52 | L14: 558.66 | M14: 782.12 | N14: 223.46 | O14: 1117.32 | P14: 1229.05 | Q14: 1340.78 | R14: 6000
A15: Insurances | B15: per Head | C15: 5000 | D15: =RoundToSum($C15/INDEX(Keys!B$4:E$4,,MATCH(B15,Keys!$B$3:$E$3,0))*TRANSPOSE(INDEX(Keys!B$5:E$18,,MATCH(B15,Keys!$B$3:$E$3,0)))) -> 49.02 | E15: 49.02 | F15: 147.06 | G15: 49.02 | H15: 98.04 | I15: 147.06 | J15: 147.06 | K15: 49.02 | L15: 588.23 | M15: 490.2 | N15: 0 | O15: 980.39 | P15: 980.39 | Q15: 1225.49 | R15: 5000
A16: Legal costs | B16: Weighted | C16: 5000 | D16: =RoundToSum($C16/INDEX(Keys!B$4:E$4,,MATCH(B16,Keys!$B$3:$E$3,0))*TRANSPOSE(INDEX(Keys!B$5:E$18,,MATCH(B16,Keys!$B$3:$E$3,0)))) -> 625 | E16: 312.5 | F16: 312.5 | G16: 312.5 | H16: 312.5 | I16: 625 | J16: 312.5 | K16: 312.5 | L16: 312.5 | M16: 312.5 | N16: 312.5 | O16: 312.5 | P16: 312.5 | Q16: 312.5 | R16: 5000
A17: Accounting costs | B17: Weighted | C17: 1000 | D17: =RoundToSum($C17/INDEX(Keys!B$4:E$4,,MATCH(B17,Keys!$B$3:$E$3,0))*TRANSPOSE(INDEX(Keys!B$5:E$18,,MATCH(B17,Keys!$B$3:$E$3,0)))) -> 125 | E17: 62.5 | F17: 62.5 | G17: 62.5 | H17: 62.5 | I17: 125 | J17: 62.5 | K17: 62.5 | L17: 62.5 | M17: 62.5 | N17: 62.5 | O17: 62.5 | P17: 62.5 | Q17: 62.5 | R17: 1000
A18: Stationary | B18: Weighted | C18: 2000 | D18: =RoundToSum($C18/INDEX(Keys!B$4:E$4,,MATCH(B18,Keys!$B$3:$E$3,0))*TRANSPOSE(INDEX(Keys!B$5:E$18,,MATCH(B18,Keys!$B$3:$E$3,0)))) -> 250 | E18: 125 | F18: 125 | G18: 125 | H18: 125 | I18: 250 | J18: 125 | K18: 125 | L18: 125 | M18: 125 | N18: 125 | O18: 125 | P18: 125 | Q18: 125 | R18: 2000
A19: Telecommunication | B19: Weighted | C19: 2500 | D19: =RoundToSum($C19/INDEX(Keys!B$4:E$4,,MATCH(B19,Keys!$B$3:$E$3,0))*TRANSPOSE(INDEX(Keys!B$5:E$18,,MATCH(B19,Keys!$B$3:$E$3,0)))) -> 312.5 | E19: 156.25 | F19: 156.25 | G19: 156.25 | H19: 156.25 | I19: 312.5 | J19: 156.25 | K19: 156.25 | L19: 156.25 | M19: 156.25 | N19: 156.25 | O19: 156.25 | P19: 156.25 | Q19: 156.25 | R19: 2500
A20: Shipping and mailing costs | B20: Weighted | C20: 2000 | D20: =RoundToSum($C20/INDEX(Keys!B$4:E$4,,MATCH(B20,Keys!$B$3:$E$3,0))*TRANSPOSE(INDEX(Keys!B$5:E$18,,MATCH(B20,Keys!$B$3:$E$3,0)))) -> 250 | E20: 125 | F20: 125 | G20: 125 | H20: 125 | I20: 250 | J20: 125 | K20: 125 | L20: 125 | M20: 125 | N20: 125 | O20: 125 | P20: 125 | Q20: 125 | R20: 2000
A21: Books, magazines | B21: Weighted | C21: 1000 | D21: =RoundToSum($C21/INDEX(Keys!B$4:E$4,,MATCH(B21,Keys!$B$3:$E$3,0))*TRANSPOSE(INDEX(Keys!B$5:E$18,,MATCH(B21,Keys!$B$3:$E$3,0)))) -> 125 | E21: 62.5 | F21: 62.5 | G21: 62.5 | H21: 62.5 | I21: 125 | J21: 62.5 | K21: 62.5 | L21: 62.5 | M21: 62.5 | N21: 62.5 | O21: 62.5 | P21: 62.5 | Q21: 62.5 | R21: 1000
A22: Money transfer fees | B22: Weighted | C22: 500 | D22: =RoundToSum($C22/INDEX(Keys!B$4:E$4,,MATCH(B22,Keys!$B$3:$E$3,0))*TRANSPOSE(INDEX(Keys!B$5:E$18,,MATCH(B22,Keys!$B$3:$E$3,0)))) -> 62.5 | E22: 31.25 | F22: 31.25 | G22: 31.25 | H22: 31.25 | I22: 62.5 | J22: 31.25 | K22: 31.25 | L22: 31.25 | M22: 31.25 | N22: 31.25 | O22: 31.25 | P22: 31.25 | Q22: 31.25 | R22: 500
A23: Damages, compensation | B23: uniform | C23: 250 | D23: =RoundToSum($C23/INDEX(Keys!B$4:E$4,,MATCH(B23,Keys!$B$3:$E$3,0))*TRANSPOSE(INDEX(Keys!B$5:E$18,,MATCH(B23,Keys!$B$3:$E$3,0)))) -> 17.85 | E23: 17.85 | F23: 17.85 | G23: 17.85 | H23: 17.86 | I23: 17.86 | J23: 17.86 | K23: 17.86 | L23: 17.86 | M23: 17.86 | N23: 17.86 | O23: 17.86 | P23: 17.86 | Q23: 17.86 | R23: 250
A24: Working clothes | B24: Weighted | C24: 1500 | D24: =RoundToSum($C24/INDEX(Keys!B$4:E$4,,MATCH(B24,Keys!$B$3:$E$3,0))*TRANSPOSE(INDEX(Keys!B$5:E$18,,MATCH(B24,Keys!$B$3:$E$3,0)))) -> 187.5 | E24: 93.75 | F24: 93.75 | G24: 93.75 | H24: 93.75 | I24: 187.5 | J24: 93.75 | K24: 93.75 | L24: 93.75 | M24: 93.75 | N24: 93.75 | O24: 93.75 | P24: 93.75 | Q24: 93.75 | R24: 1500
A25: Handicapped fee | B25: uniform | C25: 2000 | D25: =RoundToSum($C25/INDEX(Keys!B$4:E$4,,MATCH(B25,Keys!$B$3:$E$3,0))*TRANSPOSE(INDEX(Keys!B$5:E$18,,MATCH(B25,Keys!$B$3:$E$3,0)))) -> 142.85 | E25: 142.85 | F25: 142.85 | G25: 142.85 | H25: 142.86 | I25: 142.86 | J25: 142.86 | K25: 142.86 | L25: 142.86 | M25: 142.86 | N25: 142.86 | O25: 142.86 | P25: 142.86 | Q25: 142.86 | R25: 2000
A26: Training and further education | B26: Weighted | C26: 2000 | D26: =RoundToSum($C26/INDEX(Keys!B$4:E$4,,MATCH(B26,Keys!$B$3:$E$3,0))*TRANSPOSE(INDEX(Keys!B$5:E$18,,MATCH(B26,Keys!$B$3:$E$3,0)))) -> 250 | E26: 125 | F26: 125 | G26: 125 | H26: 125 | I26: 250 | J26: 125 | K26: 125 | L26: 125 | M26: 125 | N26: 125 | O26: 125 | P26: 125 | Q26: 125 | R26: 2000
A27: Other operating expenses | B27: Weighted | C27: 1500 | D27: =RoundToSum($C27/INDEX(Keys!B$4:E$4,,MATCH(B27,Keys!$B$3:$E$3,0))*TRANSPOSE(INDEX(Keys!B$5:E$18,,MATCH(B27,Keys!$B$3:$E$3,0)))) -> 187.5 | E27: 93.75 | F27: 93.75 | G27: 93.75 | H27: 93.75 | I27: 187.5 | J27: 93.75 | K27: 93.75 | L27: 93.75 | M27: 93.75 | N27: 93.75 | O27: 93.75 | P27: 93.75 | Q27: 93.75 | R27: 1500
A28: Total | C28: =SUM(C5:C27) -> 68950 | D28: =SUM(D5:D27) -> 5975.65 | E28: =SUM(E5:E27) -> 3639.08 | F28: 3994.1 | G28: 3596.24 | H28: 3730.94 | I28: 6073.71 | J28: 3565.82 | K28: 3532.03 | L28: 5077.75 | M28: 5408.03 | N28: 3847.06 | O28: 6540.68 | P28: 6754.83 | Q28: 7214.08 | R28: =SUM(D28:Q28) -> 68950
Q30: Check | R30: =R28-C28 -> 0
T32: Worksheet Formulas
T33: Range | U33: Formula
T34: D5:D27 | U34: D5 | V34: =sbGetCell(INDIRECT(U34),41) -> =RoundToSum($C5/INDEX(Keys!B$4:E$4,,MATCH(B5,Keys!$B$3:$E$3,0))*TRANSPOSE(INDEX(Keys!B$5:E$18,,MATCH(B5,Keys!$B$3:$E$3,0))))
T35: C28:Q28 | U35: C28 | V35: =sbGetCell(INDIRECT(U35),41) -> =SUM(C5:C27)
T36: R5:R28 | U36: R5 | V36: =sbGetCell(INDIRECT(U36),41) -> =SUM(D5:Q5)
T37: R30 | U37: R30 | V37: =sbGetCell(INDIRECT(U37),41) -> =R28-C28

Sheet 2_Allocation
A1: Allocation of Overhead Cost Centers and Secondary Cost Centers to Primary Cost Centers
A3: Allocated Cost Centers | B3: Direct Costs | C3: Allocation Phase 1 | D3: Total | E3: Production1 | F3: Production2 | G3: Production3 | H3: Total
A5: Management | B5: 111666 | C5: =TRANSPOSE('1_Allocation'!D28:N28) -> 5975.65 | D5: =SUM(B5:C5) -> 117641.65 | E5: =RoundToSum($D5/Keys!$F23*Keys!C23:E23) -> 35292.49 | F5: 47056.66 | G5: 35292.5 | H5: =SUM(E5:G5) -> 117641.65
A6: Secretariat | B6: 34627 | C6: 3639.08 | D6: =SUM(B6:C6) -> 38266.08 | E6: =RoundToSum($D6/Keys!$F24*Keys!C24:E24) -> 15306.43 | F6: 19133.04 | G6: 3826.61 | H6: =SUM(E6:G6) -> 38266.08
A7: Accounting | B7: 96834 | C7: 3994.1 | D7: 100828.1 | E7: =RoundToSum($D7/Keys!$F25*Keys!C25:E25) -> 30248.43 | F7: 13107.65 | G7: 57472.02 | H7: 100828.1
A8: Controlling | B8: 83875 | C8: 3596.24 | D8: 87471.24 | E8: =RoundToSum($D8/Keys!$F26*Keys!C26:E26) -> 29157.08 | F8: 29157.08 | G8: 29157.08 | H8: 87471.24
A9: HR | B9: 53765 | C9: 3730.94 | D9: 57495.94 | E9: =RoundToSum($D9/Keys!$F27*Keys!C27:E27) -> 17691.06 | F9: 17691.06 | G9: 22113.82 | H9: 57495.94
A10: Marketing | B10: 239170 | C10: 6073.71 | D10: 245243.71 | E10: =RoundToSum($D10/Keys!$F28*Keys!C28:E28) -> 73573.11 | F10: 103002.36 | G10: 68668.24 | H10: 245243.71
A11: Trainees | B11: 147397 | C11: 3565.82 | D11: 150962.82 | E11: =RoundToSum($D11/Keys!$F29*Keys!C29:E29) -> 50320.94 | F11: 50320.94 | G11: 50320.94 | H11: 150962.82
A12: Workers Council | B12: 471 | C12: 3532.03 | D12: 4003.03 | E12: =RoundToSum($D12/Keys!$F30*Keys!C30:E30) -> 1231.7 | F12: 1231.7 | G12: 1539.63 | H12: 4003.03
A13: Factory 1 | B13: 125225 | C13: 5077.75 | D13: 130302.75 | E13: =RoundToSum($D13/Keys!$F31*Keys!C31:E31) -> 32575.69 | F13: 26060.55 | G13: 71666.51 | H13: 130302.75
A14: Factory 2 | B14: 2398512 | C14: 5408.03 | D14: 2403920.03 | E14: =RoundToSum($D14/Keys!$F32*Keys!C32:E32) -> 480784 | F14: 480784.01 | G14: 1442352.02 | H14: 2403920.03
A15: Car Park | B15: 26992 | C15: 3847.06 | D15: 30839.06 | E15: =RoundToSum($D15/Keys!$F33*Keys!C33:E33) -> 12335.62 | F15: 9251.72 | G15: 9251.72 | H15: 30839.06
A16: Phase 1 Allocation | E16: ='1_Allocation'!O28 -> 6540.68 | F16: ='1_Allocation'!P28 -> 6754.83 | G16: ='1_Allocation'!Q28 -> 7214.08 | H16: =SUM(E16:G16) -> 20509.59
A17: Phase 2 Allocation | B17: =SUM(B5:B15) -> 3318534 | C17: 48440.41 | D17: 3366974.41 | E17: 778516.55 | F17: 796796.77 | G17: 1791661.09 | H17: 3366974.41
A18: Directs Costs | E18: 738060 | F18: 854000 | G18: 650360 | H18: =SUM(E18:G18) -> 2242420
A19: Total Primary Cost Centers | E19: =SUM(E16:E18) -> 1523117.23 | F19: =SUM(F16:F18) -> 1657551.6 | G19: =SUM(G16:G18) -> 2449235.17 | H19: =SUM(H16:H18) -> 5629904
A21: Overhead rate | E21: =(E17+E16)/E18 -> 1.063676707 | F21: =(F17+F16)/F18 -> 0.9409269321 | G21: =(G17+G16)/G18 -> 2.765968341 | H21: =(H17+H16)/H18 -> 1.510637615
G23: Check | H23: =H19-SUM(E18:G18)-SUM(B5:B15)-SUM('1_Allocation'!C5:C27) -> 0
J25: Worksheet Formulas
J26: Range | K26: Formula
J27: C5:C15 | K27: C5 | L27: =sbGetCell(INDIRECT(K27),41) -> =TRANSPOSE('1_Allocation'!D28:N28)
J28: D5:D15 | K28: D5 | L28: =sbGetCell(INDIRECT(K28),41) -> =SUM(B5:C5)
J29: E5:E15 | K29: E5 | L29: =sbGetCell(INDIRECT(K29),41) -> =RoundToSum($D5/Keys!$F23*Keys!C23:E23)
J30: H5:H16 | K30: H5 | L30: =sbGetCell(INDIRECT(K30),41) -> =SUM(E5:G5)
J31: E16 | K31: E16 | L31: =sbGetCell(INDIRECT(K31),41) -> ='1_Allocation'!O28
J32: B17:H17 | K32: B17 | L32: =sbGetCell(INDIRECT(K32),41) -> =SUM(B5:B15)
J33: E19:H19 | K33: E19 | L33: =sbGetCell(INDIRECT(K33),41) -> =SUM(E16:E18)
J34: E21:H21 | K34: E21 | L34: =sbGetCell(INDIRECT(K34),41) -> =(E17+E16)/E18
J35: H23 | K35: H23 | L35: =sbGetCell(INDIRECT(K35),41) -> =H19-SUM(E18:G18)-SUM(B5:B15)-SUM('1_Allocation'!C5:C27)

Sheet RoundToSum vs Others
A1: I | B1: II | C1: III | D1: IV | E1: V | F1: VI | G1: VII | H1: VIII
A2: Original unrounded | B2: RoundToSum | C2: Cascading Round | D2: Simple Round & Amend Last | E2: Simple Round | F2: Difference II - V | G2: Difference III - V | H2: Difference IV - V
A3: 948.5426666 | B3: =RoundToSum(A3:A42) -> 948.54 | C3: =ROUND(SUM($A$3:$A3),2)-SUM(C$2:C2) -> 948.54 | D3: =ROUND($A3,2) -> 948.54 | E3: =ROUND($A3,2) -> 948.54 | F3: =IF(ABS(B3-$E3)<0.000001,"",B3-$E3) ->  | G3: =IF(ABS(C3-$E3)<0.000001,"",C3-$E3) ->  | H3: =IF(ABS(D3-$E3)<0.000001,"",D3-$E3) -> 
A4: 640.6107903 | B4: 640.61 | C4: =ROUND(SUM($A$3:$A4),2)-SUM(C$2:C3) -> 640.61 | D4: =ROUND($A4,2) -> 640.61 | E4: 640.61 | F4: =IF(ABS(B4-$E4)<0.000001,"",B4-$E4) -> 
A5: 604.8177225 | B5: 604.82 | C5: =ROUND(SUM($A$3:$A5),2)-SUM(C$2:C4) -> 604.82 | D5: 604.82 | E5: 604.82
A6: 759.719267 | B6: 759.72 | C6: =ROUND(SUM($A$3:$A6),2)-SUM(C$2:C5) -> 759.72 | D6: 759.72 | E6: 759.72
A7: 716.9320656 | B7: 716.93 | C7: =ROUND(SUM($A$3:$A7),2)-SUM(C$2:C6) -> 716.93 | D7: 716.93 | E7: 716.93
A8: 263.431133 | B8: 263.43 | C8: =ROUND(SUM($A$3:$A8),2)-SUM(C$2:C7) -> 263.43 | D8: 263.43 | E8: 263.43
A9: 726.0940269 | B9: 726.09 | C9: =ROUND(SUM($A$3:$A9),2)-SUM(C$2:C8) -> 726.1 | D9: 726.09 | E9: 726.09 | G9: 0.009999999999
A10: 70.69027141 | B10: 70.69 | C10: =ROUND(SUM($A$3:$A10),2)-SUM(C$2:C9) -> 70.69 | D10: 70.69 | E10: 70.69
A11: 468.6681995 | B11: 468.67 | C11: =ROUND(SUM($A$3:$A11),2)-SUM(C$2:C10) -> 468.67 | D11: 468.67 | E11: 468.67
A12: 695.6816155 | B12: 695.68 | C12: =ROUND(SUM($A$3:$A12),2)-SUM(C$2:C11) -> 695.68 | D12: 695.68 | E12: 695.68
A13: 68.51388814 | B13: 68.51 | C13: =ROUND(SUM($A$3:$A13),2)-SUM(C$2:C12) -> 68.51 | D13: 68.51 | E13: 68.51
A14: 179.9413044 | B14: 179.94 | C14: =ROUND(SUM($A$3:$A14),2)-SUM(C$2:C13) -> 179.94 | D14: 179.94 | E14: 179.94
A15: 994.1708842 | B15: 994.17 | C15: =ROUND(SUM($A$3:$A15),2)-SUM(C$2:C14) -> 994.17 | D15: 994.17 | E15: 994.17
A16: 450.2225474 | B16: 450.22 | C16: =ROUND(SUM($A$3:$A16),2)-SUM(C$2:C15) -> 450.23 | D16: 450.22 | E16: 450.22 | G16: 0.01
A17: 875.4975592 | B17: 875.5 | C17: =ROUND(SUM($A$3:$A17),2)-SUM(C$2:C16) -> 875.49 | D17: 875.5 | E17: 875.5 | G17: -0.009999999999
A18: 217.4084507 | B18: 217.41 | C18: =ROUND(SUM($A$3:$A18),2)-SUM(C$2:C17) -> 217.41 | D18: 217.41 | E18: 217.41
A19: 186.4643542 | B19: 186.47 | C19: =ROUND(SUM($A$3:$A19),2)-SUM(C$2:C18) -> 186.47 | D19: 186.46 | E19: 186.46 | F19: 0.01 | G19: 0.009999999999
A20: 428.5237989 | B20: 428.52 | C20: =ROUND(SUM($A$3:$A20),2)-SUM(C$2:C19) -> 428.52 | D20: 428.52 | E20: 428.52
A21: 692.9424797 | B21: 692.94 | C21: =ROUND(SUM($A$3:$A21),2)-SUM(C$2:C20) -> 692.94 | D21: 692.94 | E21: 692.94
A22: 460.6134853 | B22: 460.61 | C22: =ROUND(SUM($A$3:$A22),2)-SUM(C$2:C21) -> 460.62 | D22: 460.61 | E22: 460.61 | G22: 0.009999999999
A23: 699.4999856 | B23: 699.5 | C23: =ROUND(SUM($A$3:$A23),2)-SUM(C$2:C22) -> 699.5 | D23: 699.5 | E23: 699.5
A24: 512.7661261 | B24: 512.77 | C24: =ROUND(SUM($A$3:$A24),2)-SUM(C$2:C23) -> 512.76 | D24: 512.77 | E24: 512.77 | G24: -0.01
A25: 173.039623 | B25: 173.04 | C25: =ROUND(SUM($A$3:$A25),2)-SUM(C$2:C24) -> 173.04 | D25: 173.04 | E25: 173.04
A26: 385.9625179 | B26: 385.96 | C26: =ROUND(SUM($A$3:$A26),2)-SUM(C$2:C25) -> 385.96 | D26: 385.96 | E26: 385.96
A27: 221.3543041 | B27: 221.36 | C27: =ROUND(SUM($A$3:$A27),2)-SUM(C$2:C26) -> 221.36 | D27: 221.35 | E27: 221.35 | F27: 0.01 | G27: 0.01
A28: 945.2643498 | B28: 945.27 | C28: =ROUND(SUM($A$3:$A28),2)-SUM(C$2:C27) -> 945.26 | D28: 945.26 | E28: 945.26 | F28: 0.01
A29: 401.3771987 | B29: 401.38 | C29: =ROUND(SUM($A$3:$A29),2)-SUM(C$2:C28) -> 401.38 | D29: 401.38 | E29: 401.38
A30: 666.2311689 | B30: 666.23 | C30: =ROUND(SUM($A$3:$A30),2)-SUM(C$2:C29) -> 666.23 | D30: 666.23 | E30: 666.23
A31: 378.0140135 | B31: 378.01 | C31: =ROUND(SUM($A$3:$A31),2)-SUM(C$2:C30) -> 378.02 | D31: 378.01 | E31: 378.01 | G31: 0.01
A32: 446.3934267 | B32: 446.39 | C32: =ROUND(SUM($A$3:$A32),2)-SUM(C$2:C31) -> 446.39 | D32: 446.39 | E32: 446.39
A33: 903.7448716 | B33: 903.75 | C33: =ROUND(SUM($A$3:$A33),2)-SUM(C$2:C32) -> 903.74 | D33: 903.74 | E33: 903.74 | F33: 0.01
A34: 987.4524282 | B34: 987.45 | C34: =ROUND(SUM($A$3:$A34),2)-SUM(C$2:C33) -> 987.46 | D34: 987.45 | E34: 987.45 | G34: 0.01
A35: 553.6299239 | B35: 553.63 | C35: =ROUND(SUM($A$3:$A35),2)-SUM(C$2:C34) -> 553.63 | D35: 553.63 | E35: 553.63
A36: 349.8348857 | B36: 349.84 | C36: =ROUND(SUM($A$3:$A36),2)-SUM(C$2:C35) -> 349.83 | D36: 349.83 | E36: 349.83 | F36: 0.01
A37: 14.55826737 | B37: 14.56 | C37: =ROUND(SUM($A$3:$A37),2)-SUM(C$2:C36) -> 14.56 | D37: 14.56 | E37: 14.56
A38: 152.9945856 | B38: 153 | C38: =ROUND(SUM($A$3:$A38),2)-SUM(C$2:C37) -> 152.99 | D38: 152.99 | E38: 152.99 | F38: 0.01
A39: 783.5934795 | B39: 783.59 | C39: =ROUND(SUM($A$3:$A39),2)-SUM(C$2:C38) -> 783.6 | D39: 783.59 | E39: 783.59 | G39: 0.01
A40: 178.9163192 | B40: 178.92 | C40: =ROUND(SUM($A$3:$A40),2)-SUM(C$2:C39) -> 178.91 | D40: 178.92 | E40: 178.92 | G40: -0.01
A41: 922.6008936 | B41: 922.6 | C41: =ROUND(SUM($A$3:$A41),2)-SUM(C$2:C40) -> 922.6 | D41: 922.6 | E41: 922.6
A42: 776.412911 | B42: 776.41 | C42: =ROUND(SUM($A$3:$A42),2)-SUM(C$2:C41) -> 776.42 | D42: =ROUND(A43,2)-SUM(D3:D41) -> 776.47 | E42: 776.41 | G42: 0.01 | H42: 0.06
A43: =SUM(A3:A42) -> 20903.12779 | B43: 20903.13 | C43: 20903.13 | D43: 20903.13 | E43: 20903.07 | F43: 0.06 | G43: 0.06 | H43: 0.06
A44: |Δ| to Original | B44: =SUMPRODUCT(ABS(B3:B42-$A$3:$A$42)) -> 0.1058027625 | C44: =SUMPRODUCT(ABS(C3:C42-$A$3:$A$42)) -> 0.1374137728 | D44: =SUMPRODUCT(ABS(D3:D42-$A$3:$A$42)) -> 0.1546828568 | E44: =SUMPRODUCT(ABS(E3:E42-$A$3:$A$42)) -> 0.1005049218
J46: Worksheet Formulas
J47: Range | K47: Formula
J48: C3 | K48: C3 | L48: =sbGetCell(INDIRECT(K48),41) -> =ROUND(SUM($A$3:$A3),2)-SUM(C$2:C2)
J49: D3:D42 | K49: D3 | L49: =sbGetCell(INDIRECT(K49),41) -> =ROUND($A3,2)
J50: E3:E41 | K50: E3 | L50: =sbGetCell(INDIRECT(K50),41) -> =ROUND($A3,2)
J51: E42 | K51: E42 | L51: =sbGetCell(INDIRECT(K51),41) -> =ROUND($A42,2)
J52: F3:F42 | K52: F3 | L52: =sbGetCell(INDIRECT(K52),41) -> =IF(ABS(B3-$E3)<0.000001,"",B3-$E3)
J53: G3:I42 | K53: G3 | L53: =sbGetCell(INDIRECT(K53),41) -> =IF(ABS(C3-$E3)<0.000001,"",C3-$E3)
J54: B43:I43 | K54: B43 | L54: =sbGetCell(INDIRECT(K54),41) -> =SUM(B3:B42)
J55: C44:F44 | K55: C44 | L55: =sbGetCell(INDIRECT(K55),41) -> =SUMPRODUCT(ABS(C3:C42-$A$3:$A$42))
N57: Tabellenblattformeln
N58: Bereich | O58: Formel
N59: C3 | O59: C3 | P59: =sbGetCell(INDIRECT(O59),6) -> =RUNDEN(SUMME($A$3:$A3);2)-SUMME(C$2:C2)
N60: D3:D42 | O60: D3 | P60: =sbGetCell(INDIRECT(O60),6) -> =RUNDEN($A3;2)
N61: E3:E41 | O61: E3 | P61: =sbGetCell(INDIRECT(O61),6) -> =RUNDEN($A3;2)
N62: E42 | O62: E42 | P62: =sbGetCell(INDIRECT(O62),6) -> =RUNDEN($A42;2)
N63: F3:F42 | O63: F3 | P63: =sbGetCell(INDIRECT(O63),6) -> =WENN(ABS(B3-$E3)<0,000001;"";B3-$E3)
N64: G3:I42 | O64: G3 | P64: =sbGetCell(INDIRECT(O64),6) -> =WENN(ABS(C3-$E3)<0,000001;"";C3-$E3)
N65: B43:I43 | O65: B43 | P65: =sbGetCell(INDIRECT(O65),6) -> =SUMME(B3:B42)
N66: C44:F44 | O66: C44 | P66: =sbGetCell(INDIRECT(O66),6) -> =SUMMENPRODUKT(ABS(C3:C42-$A$3:$A$42))

Sheet How many to round
G1: Kumulierte Zahlen | M1: Wieviele Summanden müssen mit welcher Wahrscheinlichkeit 'falsch' gerundet werden | R1: GCbAbsSum = True | Y1: Cumulated numbers | AF1: How many Summands to round 'wrongly' at which Likelihood | AK1: GCbAbsSum = False, GClDist = 1 | AR1: Cumulated numbers | AY1: How many Summands to round 'wrongly' at which Likelihood
A2: Eingabegröße | B2: 10 | C2: 100 | D2: 1000 | E2: 10000 | G2: Eingabegröße | H2: 10 | I2: 100 | J2: 1000 | K2: 10000 | M2: Eingabegröße | N2: 0.5 | O2: 0.9 | P2: 0.99 | R2: Input Size | S2: 10 | T2: 100 | U2: 1000 | V2: 10000 | W2: 100000 | Y2: Input Size | Z2: 10 | AA2: 100 | AB2: 1000 | AC2: 10000 | AD2: 100000 | AF2: Input Size | AG2: 0.5 | AH2: 0.9 | AI2: 0.99 | AK2: Input Size | AL2: 10 | AM2: 100 | AN2: 1000 | AO2: 10000 | AP2: 100000 | AR2: Input Size | AS2: 10 | AT2: 100 | AU2: 1000 | AV2: 10000 | AW2: 100000 | AY2: Input Size | AZ2: 0.5 | BA2: 0.9 | BB2: 0.99
A3: 0 | B3: 4076 | C3: 1430 | D3: 439 | E3: 138 | G3: 0 | H3: 4076 | I3: 1430 | J3: 439 | K3: 138 | M3: 10 | N3: 1 | O3: 2 | P3: 2 | R3: 0 | S3: 4069 | T3: 1406 | U3: 437 | V3: 138 | W3: 52 | Y3: 0 | Z3: 4069 | AA3: 1406 | AB3: 437 | AC3: 138 | AD3: 52 | AF3: 10 | AG3: 1 | AH3: 1 | AI3: 2 | AK3: 0 | AL3: 4290 | AM3: 2802 | AN3: 2866 | AO3: 2719 | AP3: 4670 | AR3: 0 | AS3: 4290 | AT3: 2802 | AU3: 2866 | AV3: 2719 | AW3: 4670 | AY3: 10 | AZ3: 1 | BA3: 1 | BB3: 2
A4: 1 | B4: 4911 | C4: 2571 | D4: 870 | E4: 234 | G4: 1 | H4: 8987 | I4: 4001 | J4: 1309 | K4: 372 | M4: 100 | N4: 2 | O4: 5 | P4: 7 | R4: 1 | S4: 4943 | T4: 2585 | U4: 870 | V4: 234 | W4: 116 | Y4: 1 | Z4: 9012 | AA4: 3991 | AB4: 1307 | AC4: 372 | AD4: 168 | AF4: 100 | AG4: 2 | AH4: 5 | AI4: 7 | AK4: 1 | AL4: 4912 | AM4: 4353 | AN4: 4343 | AO4: 4468 | AP4: 4682 | AR4: 1 | AS4: 9202 | AT4: 7155 | AU4: 7209 | AV4: 7187 | AW4: 9352 | AY4: 100 | AZ4: 1 | BA4: 2 | BB4: 4
A5: 2 | B5: 964 | C5: 2149 | D5: 796 | E5: 235 | G5: 2 | H5: 9951 | I5: 6150 | J5: 2105 | K5: 607 | M5: 1000 | N5: 6 | O5: 15 | P5: 20 | R5: 2 | S5: 944 | T5: 2162 | U5: 793 | V5: 235 | W5: 137 | Y5: 2 | Z5: 9956 | AA5: 6153 | AB5: 2100 | AC5: 607 | AD5: 305 | AF5: 1000 | AG5: 6 | AH5: 15 | AI5: 20 | AK5: 2 | AL5: 772 | AM5: 2125 | AN5: 2056 | AO5: 2075 | AP5: 603 | AR5: 2 | AS5: 9974 | AT5: 9280 | AU5: 9265 | AV5: 9262 | AW5: 9955 | AY5: 1000 | AZ5: 1 | BA5: 2 | BB5: 4
A6: 3 | B6: 49 | C6: 1625 | D6: 791 | E6: 219 | G6: 3 | H6: 10000 | I6: 7775 | J6: 2896 | K6: 826 | M6: 10000 | N6: 21 | O6: 43 | P6: 74 | R6: 3 | S6: 44 | T6: 1614 | U6: 791 | V6: 219 | W6: 92 | Y6: 3 | Z6: 10000 | AA6: 7767 | AB6: 2891 | AC6: 826 | AD6: 397 | AF6: 10000 | AG6: 21 | AH6: 43 | AI6: 74 | AK6: 3 | AL6: 26 | AM6: 596 | AN6: 619 | AO6: 615 | AP6: 44 | AR6: 3 | AS6: 10000 | AT6: 9876 | AU6: 9884 | AV6: 9877 | AW6: 9999 | AY6: 10000 | AZ6: 1 | BA6: 2 | BB6: 4
A7: 4 | B7: 0 | C7: 1061 | D7: 738 | E7: 219 | G7: 4 | H7: 10000 | I7: 8836 | J7: 3634 | K7: 1045 | R7: 4 | S7: 0 | T7: 1060 | U7: 744 | V7: 219 | W7: 93 | Y7: 4 | Z7: 10000 | AA7: 8827 | AB7: 3635 | AC7: 1045 | AD7: 490 | AF7: 100000 | AG7: 32 | AH7: 77 | AI7: 122 | AK7: 4 | AL7: 0 | AM7: 104 | AN7: 102 | AO7: 108 | AP7: 1 | AR7: 4 | AS7: 10000 | AT7: 9980 | AU7: 9986 | AV7: 9985 | AW7: 10000 | AY7: 100000 | AZ7: 1 | BA7: 1 | BB7: 2
A8: 5 | B8: 0 | C8: 608 | D8: 730 | E8: 201 | G8: 5 | H8: 10000 | I8: 9444 | J8: 4364 | K8: 1246 | R8: 5 | S8: 0 | T8: 619 | U8: 730 | V8: 200 | W8: 111 | Y8: 5 | Z8: 10000 | AA8: 9446 | AB8: 4365 | AC8: 1245 | AD8: 601 | AK8: 5 | AL8: 0 | AM8: 19 | AN8: 13 | AO8: 13 | AP8: 0 | AR8: 5 | AS8: 10000 | AT8: 9999 | AU8: 9999 | AV8: 9998 | AW8: 10000
A9: 6 | B9: 0 | C9: 300 | D9: 765 | E9: 218 | G9: 6 | H9: 10000 | I9: 9744 | J9: 5129 | K9: 1464 | R9: 6 | S9: 0 | T9: 300 | U9: 768 | V9: 218 | W9: 63 | Y9: 6 | Z9: 10000 | AA9: 9746 | AB9: 5133 | AC9: 1463 | AD9: 664 | AK9: 6 | AL9: 0 | AM9: 1 | AN9: 1 | AO9: 2 | AP9: 0 | AR9: 6 | AS9: 10000 | AT9: 10000 | AU9: 10000 | AV9: 10000 | AW9: 10000
A10: 7 | B10: 0 | C10: 160 | D10: 686 | E10: 195 | G10: 7 | H10: 10000 | I10: 9904 | J10: 5815 | K10: 1659 | R10: 7 | S10: 0 | T10: 157 | U10: 686 | V10: 195 | W10: 75 | Y10: 7 | Z10: 10000 | AA10: 9903 | AB10: 5819 | AC10: 1658 | AD10: 739
A11: 8 | B11: 0 | C11: 55 | D11: 627 | E11: 175 | G11: 8 | H11: 10000 | I11: 9959 | J11: 6442 | K11: 1834 | R11: 8 | S11: 0 | T11: 58 | U11: 625 | V11: 175 | W11: 63 | Y11: 8 | Z11: 10000 | AA11: 9961 | AB11: 6444 | AC11: 1833 | AD11: 802
A12: 9 | B12: 0 | C12: 24 | D12: 568 | E12: 208 | G12: 9 | H12: 10000 | I12: 9983 | J12: 7010 | K12: 2042 | R12: 9 | S12: 0 | T12: 24 | U12: 567 | V12: 208 | W12: 95 | Y12: 9 | Z12: 10000 | AA12: 9985 | AB12: 7011 | AC12: 2041 | AD12: 897
A13: 10 | B13: 0 | C13: 8 | D13: 515 | E13: 191 | G13: 10 | H13: 10000 | I13: 9991 | J13: 7525 | K13: 2233 | R13: 10 | S13: 0 | T13: 8 | U13: 510 | V13: 191 | W13: 145 | Y13: 10 | Z13: 10000 | AA13: 9993 | AB13: 7521 | AC13: 2232 | AD13: 1042
A14: 11 | B14: 0 | C14: 7 | D14: 447 | E14: 192 | G14: 11 | H14: 10000 | I14: 9998 | J14: 7972 | K14: 2425 | R14: 11 | S14: 0 | T14: 5 | U14: 447 | V14: 192 | W14: 120 | Y14: 11 | Z14: 10000 | AA14: 9998 | AB14: 7968 | AC14: 2424 | AD14: 1162
A15: 12 | B15: 0 | C15: 1 | D15: 383 | E15: 243 | G15: 12 | H15: 10000 | I15: 9999 | J15: 8355 | K15: 2668 | R15: 12 | S15: 0 | T15: 1 | U15: 382 | V15: 243 | W15: 122 | Y15: 12 | Z15: 10000 | AA15: 9999 | AB15: 8350 | AC15: 2667 | AD15: 1284
A16: 13 | B16: 0 | C16: 0 | D16: 350 | E16: 268 | G16: 13 | H16: 10000 | I16: 9999 | J16: 8705 | K16: 2936 | R16: 13 | S16: 0 | T16: 0 | U16: 351 | V16: 267 | W16: 161 | Y16: 13 | Z16: 10000 | AA16: 9999 | AB16: 8701 | AC16: 2934 | AD16: 1445
A17: 14 | B17: 0 | C17: 1 | D17: 260 | E17: 261 | G17: 14 | H17: 10000 | I17: 10000 | J17: 8965 | K17: 3197 | R17: 14 | S17: 0 | T17: 1 | U17: 263 | V17: 261 | W17: 134 | Y17: 14 | Z17: 10000 | AA17: 10000 | AB17: 8964 | AC17: 3195 | AD17: 1579
A18: 15 | B18: 0 | C18: 0 | D18: 239 | E18: 242 | G18: 15 | H18: 10000 | I18: 10000 | J18: 9204 | K18: 3439 | R18: 15 | S18: 0 | T18: 0 | U18: 239 | V18: 243 | W18: 147 | Y18: 15 | Z18: 10000 | AA18: 10000 | AB18: 9203 | AC18: 3438 | AD18: 1726
A19: 16 | B19: 0 | C19: 0 | D19: 204 | E19: 225 | G19: 16 | H19: 10000 | I19: 10000 | J19: 9408 | K19: 3664 | R19: 16 | S19: 0 | T19: 0 | U19: 205 | V19: 226 | W19: 169 | Y19: 16 | Z19: 10000 | AA19: 10000 | AB19: 9408 | AC19: 3664 | AD19: 1895
A20: 17 | B20: 0 | C20: 0 | D20: 150 | E20: 266 | G20: 17 | H20: 10000 | I20: 10000 | J20: 9558 | K20: 3930 | R20: 17 | S20: 0 | T20: 0 | U20: 150 | V20: 267 | W20: 146 | Y20: 17 | Z20: 10000 | AA20: 10000 | AB20: 9558 | AC20: 3931 | AD20: 2041
A21: 18 | B21: 0 | C21: 0 | D21: 153 | E21: 260 | G21: 18 | H21: 10000 | I21: 10000 | J21: 9711 | K21: 4190 | R21: 18 | S21: 0 | T21: 0 | U21: 152 | V21: 260 | W21: 164 | Y21: 18 | Z21: 10000 | AA21: 10000 | AB21: 9710 | AC21: 4191 | AD21: 2205
A22: 19 | B22: 0 | C22: 0 | D22: 105 | E22: 311 | G22: 19 | H22: 10000 | I22: 10000 | J22: 9816 | K22: 4501 | R22: 19 | S22: 0 | T22: 0 | U22: 106 | V22: 311 | W22: 226 | Y22: 19 | Z22: 10000 | AA22: 10000 | AB22: 9816 | AC22: 4502 | AD22: 2431
A23: 20 | B23: 0 | C23: 0 | D23: 92 | E23: 350 | G23: 20 | H23: 10000 | I23: 10000 | J23: 9908 | K23: 4851 | R23: 20 | S23: 0 | T23: 0 | U23: 92 | V23: 349 | W23: 186 | Y23: 20 | Z23: 10000 | AA23: 10000 | AB23: 9908 | AC23: 4851 | AD23: 2617
A24: 21 | B24: 0 | C24: 0 | D24: 56 | E24: 343 | G24: 21 | H24: 10000 | I24: 10000 | J24: 9964 | K24: 5194 | R24: 21 | S24: 0 | T24: 0 | U24: 55 | V24: 343 | W24: 203 | Y24: 21 | Z24: 10000 | AA24: 10000 | AB24: 9963 | AC24: 5194 | AD24: 2820
A25: 22 | B25: 0 | C25: 0 | D25: 20 | E25: 339 | G25: 22 | H25: 10000 | I25: 10000 | J25: 9984 | K25: 5533 | R25: 22 | S25: 0 | T25: 0 | U25: 21 | V25: 339 | W25: 197 | Y25: 22 | Z25: 10000 | AA25: 10000 | AB25: 9984 | AC25: 5533 | AD25: 3017
A26: 23 | B26: 0 | C26: 0 | D26: 8 | E26: 295 | G26: 23 | H26: 10000 | I26: 10000 | J26: 9992 | K26: 5828 | R26: 23 | S26: 0 | T26: 0 | U26: 8 | V26: 296 | W26: 222 | Y26: 23 | Z26: 10000 | AA26: 10000 | AB26: 9992 | AC26: 5829 | AD26: 3239
A27: 24 | B27: 0 | C27: 0 | D27: 5 | E27: 315 | G27: 24 | H27: 10000 | I27: 10000 | J27: 9997 | K27: 6143 | R27: 24 | S27: 0 | T27: 0 | U27: 5 | V27: 315 | W27: 190 | Y27: 24 | Z27: 10000 | AA27: 10000 | AB27: 9997 | AC27: 6144 | AD27: 3429
A28: 25 | B28: 0 | C28: 0 | D28: 3 | E28: 268 | G28: 25 | H28: 10000 | I28: 10000 | J28: 10000 | K28: 6411 | R28: 25 | S28: 0 | T28: 0 | U28: 3 | V28: 269 | W28: 221 | Y28: 25 | Z28: 10000 | AA28: 10000 | AB28: 10000 | AC28: 6413 | AD28: 3650
A29: 26 | B29: 0 | C29: 0 | D29: 0 | E29: 221 | G29: 26 | H29: 10000 | I29: 10000 | J29: 10000 | K29: 6632 | R29: 26 | S29: 0 | T29: 0 | U29: 0 | V29: 221 | W29: 209 | Y29: 26 | Z29: 10000 | AA29: 10000 | AB29: 10000 | AC29: 6634 | AD29: 3859
A30: 27 | B30: 0 | C30: 0 | D30: 0 | E30: 215 | G30: 27 | H30: 10000 | I30: 10000 | J30: 10000 | K30: 6847 | R30: 27 | S30: 0 | T30: 0 | U30: 0 | V30: 215 | W30: 204 | Y30: 27 | Z30: 10000 | AA30: 10000 | AB30: 10000 | AC30: 6849 | AD30: 4063
A31: 28 | B31: 0 | C31: 0 | D31: 0 | E31: 239 | G31: 28 | H31: 10000 | I31: 10000 | J31: 10000 | K31: 7086 | R31: 28 | S31: 0 | T31: 0 | U31: 0 | V31: 239 | W31: 197 | Y31: 28 | Z31: 10000 | AA31: 10000 | AB31: 10000 | AC31: 7088 | AD31: 4260
A32: 29 | B32: 0 | C32: 0 | D32: 0 | E32: 261 | G32: 29 | H32: 10000 | I32: 10000 | J32: 10000 | K32: 7347 | R32: 29 | S32: 0 | T32: 0 | U32: 0 | V32: 261 | W32: 222 | Y32: 29 | Z32: 10000 | AA32: 10000 | AB32: 10000 | AC32: 7349 | AD32: 4482
A33: 30 | B33: 0 | C33: 0 | D33: 0 | E33: 231 | G33: 30 | H33: 10000 | I33: 10000 | J33: 10000 | K33: 7578 | R33: 30 | S33: 0 | T33: 0 | U33: 0 | V33: 230 | W33: 191 | Y33: 30 | Z33: 10000 | AA33: 10000 | AB33: 10000 | AC33: 7579 | AD33: 4673
A34: 31 | B34: 0 | C34: 0 | D34: 0 | E34: 192 | G34: 31 | H34: 10000 | I34: 10000 | J34: 10000 | K34: 7770 | R34: 31 | S34: 0 | T34: 0 | U34: 0 | V34: 192 | W34: 210 | Y34: 31 | Z34: 10000 | AA34: 10000 | AB34: 10000 | AC34: 7771 | AD34: 4883
A35: 32 | B35: 0 | C35: 0 | D35: 0 | E35: 191 | G35: 32 | H35: 10000 | I35: 10000 | J35: 10000 | K35: 7961 | R35: 32 | S35: 0 | T35: 0 | U35: 0 | V35: 190 | W35: 183 | Y35: 32 | Z35: 10000 | AA35: 10000 | AB35: 10000 | AC35: 7961 | AD35: 5066
A36: 33 | B36: 0 | C36: 0 | D36: 0 | E36: 157 | G36: 33 | H36: 10000 | I36: 10000 | J36: 10000 | K36: 8118 | R36: 33 | S36: 0 | T36: 0 | U36: 0 | V36: 157 | W36: 175 | Y36: 33 | Z36: 10000 | AA36: 10000 | AB36: 10000 | AC36: 8118 | AD36: 5241
A37: 34 | B37: 0 | C37: 0 | D37: 0 | E37: 163 | G37: 34 | H37: 10000 | I37: 10000 | J37: 10000 | K37: 8281 | R37: 34 | S37: 0 | T37: 0 | U37: 0 | V37: 163 | W37: 207 | Y37: 34 | Z37: 10000 | AA37: 10000 | AB37: 10000 | AC37: 8281 | AD37: 5448
A38: 35 | B38: 0 | C38: 0 | D38: 0 | E38: 98 | G38: 35 | H38: 10000 | I38: 10000 | J38: 10000 | K38: 8379 | R38: 35 | S38: 0 | T38: 0 | U38: 0 | V38: 98 | W38: 183 | Y38: 35 | Z38: 10000 | AA38: 10000 | AB38: 10000 | AC38: 8379 | AD38: 5631
A39: 36 | B39: 0 | C39: 0 | D39: 0 | E39: 118 | G39: 36 | H39: 10000 | I39: 10000 | J39: 10000 | K39: 8497 | R39: 36 | S39: 0 | T39: 0 | U39: 0 | V39: 118 | W39: 174 | Y39: 36 | Z39: 10000 | AA39: 10000 | AB39: 10000 | AC39: 8497 | AD39: 5805
A40: 37 | B40: 0 | C40: 0 | D40: 0 | E40: 87 | G40: 37 | H40: 10000 | I40: 10000 | J40: 10000 | K40: 8584 | R40: 37 | S40: 0 | T40: 0 | U40: 0 | V40: 87 | W40: 197 | Y40: 37 | Z40: 10000 | AA40: 10000 | AB40: 10000 | AC40: 8584 | AD40: 6002
A41: 38 | B41: 0 | C41: 0 | D41: 0 | E41: 81 | G41: 38 | H41: 10000 | I41: 10000 | J41: 10000 | K41: 8665 | R41: 38 | S41: 0 | T41: 0 | U41: 0 | V41: 81 | W41: 164 | Y41: 38 | Z41: 10000 | AA41: 10000 | AB41: 10000 | AC41: 8665 | AD41: 6166
A42: 39 | B42: 0 | C42: 0 | D42: 0 | E42: 87 | G42: 39 | H42: 10000 | I42: 10000 | J42: 10000 | K42: 8752 | R42: 39 | S42: 0 | T42: 0 | U42: 0 | V42: 87 | W42: 182 | Y42: 39 | Z42: 10000 | AA42: 10000 | AB42: 10000 | AC42: 8752 | AD42: 6348
A43: 40 | B43: 0 | C43: 0 | D43: 0 | E43: 76 | G43: 40 | H43: 10000 | I43: 10000 | J43: 10000 | K43: 8828 | R43: 40 | S43: 0 | T43: 0 | U43: 0 | V43: 76 | W43: 183 | Y43: 40 | Z43: 10000 | AA43: 10000 | AB43: 10000 | AC43: 8828 | AD43: 6531
A44: 41 | B44: 0 | C44: 0 | D44: 0 | E44: 60 | G44: 41 | H44: 10000 | I44: 10000 | J44: 10000 | K44: 8888 | R44: 41 | S44: 0 | T44: 0 | U44: 0 | V44: 60 | W44: 130 | Y44: 41 | Z44: 10000 | AA44: 10000 | AB44: 10000 | AC44: 8888 | AD44: 6661
A45: 42 | B45: 0 | C45: 0 | D45: 0 | E45: 59 | G45: 42 | H45: 10000 | I45: 10000 | J45: 10000 | K45: 8947 | R45: 42 | S45: 0 | T45: 0 | U45: 0 | V45: 59 | W45: 144 | Y45: 42 | Z45: 10000 | AA45: 10000 | AB45: 10000 | AC45: 8947 | AD45: 6805
A46: 43 | B46: 0 | C46: 0 | D46: 0 | E46: 65 | G46: 43 | H46: 10000 | I46: 10000 | J46: 10000 | K46: 9012 | R46: 43 | S46: 0 | T46: 0 | U46: 0 | V46: 65 | W46: 164 | Y46: 43 | Z46: 10000 | AA46: 10000 | AB46: 10000 | AC46: 9012 | AD46: 6969
A47: 44 | B47: 0 | C47: 0 | D47: 0 | E47: 56 | G47: 44 | H47: 10000 | I47: 10000 | J47: 10000 | K47: 9068 | R47: 44 | S47: 0 | T47: 0 | U47: 0 | V47: 56 | W47: 147 | Y47: 44 | Z47: 10000 | AA47: 10000 | AB47: 10000 | AC47: 9068 | AD47: 7116
A48: 45 | B48: 0 | C48: 0 | D48: 0 | E48: 64 | G48: 45 | H48: 10000 | I48: 10000 | J48: 10000 | K48: 9132 | R48: 45 | S48: 0 | T48: 0 | U48: 0 | V48: 64 | W48: 130 | Y48: 45 | Z48: 10000 | AA48: 10000 | AB48: 10000 | AC48: 9132 | AD48: 7246
A49: 46 | B49: 0 | C49: 0 | D49: 0 | E49: 44 | G49: 46 | H49: 10000 | I49: 10000 | J49: 10000 | K49: 9176 | R49: 46 | S49: 0 | T49: 0 | U49: 0 | V49: 44 | W49: 131 | Y49: 46 | Z49: 10000 | AA49: 10000 | AB49: 10000 | AC49: 9176 | AD49: 7377
A50: 47 | B50: 0 | C50: 0 | D50: 0 | E50: 44 | G50: 47 | H50: 10000 | I50: 10000 | J50: 10000 | K50: 9220 | R50: 47 | S50: 0 | T50: 0 | U50: 0 | V50: 44 | W50: 111 | Y50: 47 | Z50: 10000 | AA50: 10000 | AB50: 10000 | AC50: 9220 | AD50: 7488
A51: 48 | B51: 0 | C51: 0 | D51: 0 | E51: 61 | G51: 48 | H51: 10000 | I51: 10000 | J51: 10000 | K51: 9281 | R51: 48 | S51: 0 | T51: 0 | U51: 0 | V51: 61 | W51: 118 | Y51: 48 | Z51: 10000 | AA51: 10000 | AB51: 10000 | AC51: 9281 | AD51: 7606
A52: 49 | B52: 0 | C52: 0 | D52: 0 | E52: 49 | G52: 49 | H52: 10000 | I52: 10000 | J52: 10000 | K52: 9330 | R52: 49 | S52: 0 | T52: 0 | U52: 0 | V52: 49 | W52: 66 | Y52: 49 | Z52: 10000 | AA52: 10000 | AB52: 10000 | AC52: 9330 | AD52: 7672
A53: 50 | B53: 0 | C53: 0 | D53: 0 | E53: 41 | G53: 50 | H53: 10000 | I53: 10000 | J53: 10000 | K53: 9371 | R53: 50 | S53: 0 | T53: 0 | U53: 0 | V53: 41 | W53: 61 | Y53: 50 | Z53: 10000 | AA53: 10000 | AB53: 10000 | AC53: 9371 | AD53: 7733
A54: 51 | B54: 0 | C54: 0 | D54: 0 | E54: 58 | G54: 51 | H54: 10000 | I54: 10000 | J54: 10000 | K54: 9429 | R54: 51 | S54: 0 | T54: 0 | U54: 0 | V54: 58 | W54: 71 | Y54: 51 | Z54: 10000 | AA54: 10000 | AB54: 10000 | AC54: 9429 | AD54: 7804
A55: 52 | B55: 0 | C55: 0 | D55: 0 | E55: 54 | G55: 52 | H55: 10000 | I55: 10000 | J55: 10000 | K55: 9483 | R55: 52 | S55: 0 | T55: 0 | U55: 0 | V55: 54 | W55: 51 | Y55: 52 | Z55: 10000 | AA55: 10000 | AB55: 10000 | AC55: 9483 | AD55: 7855
A56: 53 | B56: 0 | C56: 0 | D56: 0 | E56: 34 | G56: 53 | H56: 10000 | I56: 10000 | J56: 10000 | K56: 9517 | R56: 53 | S56: 0 | T56: 0 | U56: 0 | V56: 34 | W56: 90 | Y56: 53 | Z56: 10000 | AA56: 10000 | AB56: 10000 | AC56: 9517 | AD56: 7945
A57: 54 | B57: 0 | C57: 0 | D57: 0 | E57: 41 | G57: 54 | H57: 10000 | I57: 10000 | J57: 10000 | K57: 9558 | R57: 54 | S57: 0 | T57: 0 | U57: 0 | V57: 41 | W57: 81 | Y57: 54 | Z57: 10000 | AA57: 10000 | AB57: 10000 | AC57: 9558 | AD57: 8026
A58: 55 | B58: 0 | C58: 0 | D58: 0 | E58: 26 | G58: 55 | H58: 10000 | I58: 10000 | J58: 10000 | K58: 9584 | R58: 55 | S58: 0 | T58: 0 | U58: 0 | V58: 26 | W58: 86 | Y58: 55 | Z58: 10000 | AA58: 10000 | AB58: 10000 | AC58: 9584 | AD58: 8112
A59: 56 | B59: 0 | C59: 0 | D59: 0 | E59: 16 | G59: 56 | H59: 10000 | I59: 10000 | J59: 10000 | K59: 9600 | R59: 56 | S59: 0 | T59: 0 | U59: 0 | V59: 16 | W59: 87 | Y59: 56 | Z59: 10000 | AA59: 10000 | AB59: 10000 | AC59: 9600 | AD59: 8199
A60: 57 | B60: 0 | C60: 0 | D60: 0 | E60: 12 | G60: 57 | H60: 10000 | I60: 10000 | J60: 10000 | K60: 9612 | R60: 57 | S60: 0 | T60: 0 | U60: 0 | V60: 12 | W60: 84 | Y60: 57 | Z60: 10000 | AA60: 10000 | AB60: 10000 | AC60: 9612 | AD60: 8283
A61: 58 | B61: 0 | C61: 0 | D61: 0 | E61: 21 | G61: 58 | H61: 10000 | I61: 10000 | J61: 10000 | K61: 9633 | R61: 58 | S61: 0 | T61: 0 | U61: 0 | V61: 21 | W61: 40 | Y61: 58 | Z61: 10000 | AA61: 10000 | AB61: 10000 | AC61: 9633 | AD61: 8323
A62: 59 | B62: 0 | C62: 0 | D62: 0 | E62: 13 | G62: 59 | H62: 10000 | I62: 10000 | J62: 10000 | K62: 9646 | R62: 59 | S62: 0 | T62: 0 | U62: 0 | V62: 13 | W62: 70 | Y62: 59 | Z62: 10000 | AA62: 10000 | AB62: 10000 | AC62: 9646 | AD62: 8393
A63: 60 | B63: 0 | C63: 0 | D63: 0 | E63: 10 | G63: 60 | H63: 10000 | I63: 10000 | J63: 10000 | K63: 9656 | R63: 60 | S63: 0 | T63: 0 | U63: 0 | V63: 10 | W63: 58 | Y63: 60 | Z63: 10000 | AA63: 10000 | AB63: 10000 | AC63: 9656 | AD63: 8451
A64: 61 | B64: 0 | C64: 0 | D64: 0 | E64: 9 | G64: 61 | H64: 10000 | I64: 10000 | J64: 10000 | K64: 9665 | R64: 61 | S64: 0 | T64: 0 | U64: 0 | V64: 9 | W64: 44 | Y64: 61 | Z64: 10000 | AA64: 10000 | AB64: 10000 | AC64: 9665 | AD64: 8495
A65: 62 | B65: 0 | C65: 0 | D65: 0 | E65: 10 | G65: 62 | H65: 10000 | I65: 10000 | J65: 10000 | K65: 9675 | R65: 62 | S65: 0 | T65: 0 | U65: 0 | V65: 10 | W65: 34 | Y65: 62 | Z65: 10000 | AA65: 10000 | AB65: 10000 | AC65: 9675 | AD65: 8529
A66: 63 | B66: 0 | C66: 0 | D66: 0 | E66: 9 | G66: 63 | H66: 10000 | I66: 10000 | J66: 10000 | K66: 9684 | R66: 63 | S66: 0 | T66: 0 | U66: 0 | V66: 9 | W66: 18 | Y66: 63 | Z66: 10000 | AA66: 10000 | AB66: 10000 | AC66: 9684 | AD66: 8547
A67: 64 | B67: 0 | C67: 0 | D67: 0 | E67: 17 | G67: 64 | H67: 10000 | I67: 10000 | J67: 10000 | K67: 9701 | R67: 64 | S67: 0 | T67: 0 | U67: 0 | V67: 17 | W67: 43 | Y67: 64 | Z67: 10000 | AA67: 10000 | AB67: 10000 | AC67: 9701 | AD67: 8590
A68: 65 | B68: 0 | C68: 0 | D68: 0 | E68: 18 | G68: 65 | H68: 10000 | I68: 10000 | J68: 10000 | K68: 9719 | R68: 65 | S68: 0 | T68: 0 | U68: 0 | V68: 18 | W68: 39 | Y68: 65 | Z68: 10000 | AA68: 10000 | AB68: 10000 | AC68: 9719 | AD68: 8629
A69: 66 | B69: 0 | C69: 0 | D69: 0 | E69: 23 | G69: 66 | H69: 10000 | I69: 10000 | J69: 10000 | K69: 9742 | R69: 66 | S69: 0 | T69: 0 | U69: 0 | V69: 23 | W69: 35 | Y69: 66 | Z69: 10000 | AA69: 10000 | AB69: 10000 | AC69: 9742 | AD69: 8664
A70: 67 | B70: 0 | C70: 0 | D70: 0 | E70: 20 | G70: 67 | H70: 10000 | I70: 10000 | J70: 10000 | K70: 9762 | R70: 67 | S70: 0 | T70: 0 | U70: 0 | V70: 20 | W70: 26 | Y70: 67 | Z70: 10000 | AA70: 10000 | AB70: 10000 | AC70: 9762 | AD70: 8690
A71: 68 | B71: 0 | C71: 0 | D71: 0 | E71: 23 | G71: 68 | H71: 10000 | I71: 10000 | J71: 10000 | K71: 9785 | R71: 68 | S71: 0 | T71: 0 | U71: 0 | V71: 23 | W71: 28 | Y71: 68 | Z71: 10000 | AA71: 10000 | AB71: 10000 | AC71: 9785 | AD71: 8718
A72: 69 | B72: 0 | C72: 0 | D72: 0 | E72: 20 | G72: 69 | H72: 10000 | I72: 10000 | J72: 10000 | K72: 9805 | R72: 69 | S72: 0 | T72: 0 | U72: 0 | V72: 20 | W72: 21 | Y72: 69 | Z72: 10000 | AA72: 10000 | AB72: 10000 | AC72: 9805 | AD72: 8739
A73: 70 | B73: 0 | C73: 0 | D73: 0 | E73: 15 | G73: 70 | H73: 10000 | I73: 10000 | J73: 10000 | K73: 9820 | R73: 70 | S73: 0 | T73: 0 | U73: 0 | V73: 15 | W73: 19 | Y73: 70 | Z73: 10000 | AA73: 10000 | AB73: 10000 | AC73: 9820 | AD73: 8758
A74: 71 | B74: 0 | C74: 0 | D74: 0 | E74: 15 | G74: 71 | H74: 10000 | I74: 10000 | J74: 10000 | K74: 9835 | R74: 71 | S74: 0 | T74: 0 | U74: 0 | V74: 15 | W74: 19 | Y74: 71 | Z74: 10000 | AA74: 10000 | AB74: 10000 | AC74: 9835 | AD74: 8777
A75: 72 | B75: 0 | C75: 0 | D75: 0 | E75: 22 | G75: 72 | H75: 10000 | I75: 10000 | J75: 10000 | K75: 9857 | R75: 72 | S75: 0 | T75: 0 | U75: 0 | V75: 22 | W75: 40 | Y75: 72 | Z75: 10000 | AA75: 10000 | AB75: 10000 | AC75: 9857 | AD75: 8817
A76: 73 | B76: 0 | C76: 0 | D76: 0 | E76: 28 | G76: 73 | H76: 10000 | I76: 10000 | J76: 10000 | K76: 9885 | R76: 73 | S76: 0 | T76: 0 | U76: 0 | V76: 28 | W76: 29 | Y76: 73 | Z76: 10000 | AA76: 10000 | AB76: 10000 | AC76: 9885 | AD76: 8846
A77: 74 | B77: 0 | C77: 0 | D77: 0 | E77: 32 | G77: 74 | H77: 10000 | I77: 10000 | J77: 10000 | K77: 9917 | R77: 74 | S77: 0 | T77: 0 | U77: 0 | V77: 32 | W77: 44 | Y77: 74 | Z77: 10000 | AA77: 10000 | AB77: 10000 | AC77: 9917 | AD77: 8890
A78: 75 | B78: 0 | C78: 0 | D78: 0 | E78: 20 | G78: 75 | H78: 10000 | I78: 10000 | J78: 10000 | K78: 9937 | R78: 75 | S78: 0 | T78: 0 | U78: 0 | V78: 20 | W78: 49 | Y78: 75 | Z78: 10000 | AA78: 10000 | AB78: 10000 | AC78: 9937 | AD78: 8939
A79: 76 | B79: 0 | C79: 0 | D79: 0 | E79: 19 | G79: 76 | H79: 10000 | I79: 10000 | J79: 10000 | K79: 9956 | R79: 76 | S79: 0 | T79: 0 | U79: 0 | V79: 19 | W79: 30 | Y79: 76 | Z79: 10000 | AA79: 10000 | AB79: 10000 | AC79: 9956 | AD79: 8969
A80: 77 | B80: 0 | C80: 0 | D80: 0 | E80: 15 | G80: 77 | H80: 10000 | I80: 10000 | J80: 10000 | K80: 9971 | R80: 77 | S80: 0 | T80: 0 | U80: 0 | V80: 15 | W80: 63 | Y80: 77 | Z80: 10000 | AA80: 10000 | AB80: 10000 | AC80: 9971 | AD80: 9032
A81: 78 | B81: 0 | C81: 0 | D81: 0 | E81: 14 | G81: 78 | H81: 10000 | I81: 10000 | J81: 10000 | K81: 9985 | R81: 78 | S81: 0 | T81: 0 | U81: 0 | V81: 14 | W81: 59 | Y81: 78 | Z81: 10000 | AA81: 10000 | AB81: 10000 | AC81: 9985 | AD81: 9091
A82: 79 | B82: 0 | C82: 0 | D82: 0 | E82: 13 | G82: 79 | H82: 10000 | I82: 10000 | J82: 10000 | K82: 9998 | R82: 79 | S82: 0 | T82: 0 | U82: 0 | V82: 13 | W82: 55 | Y82: 79 | Z82: 10000 | AA82: 10000 | AB82: 10000 | AC82: 9998 | AD82: 9146
A83: 80 | B83: 0 | C83: 0 | D83: 0 | E83: 2 | G83: 80 | H83: 10000 | I83: 10000 | J83: 10000 | K83: 10000 | R83: 80 | S83: 0 | T83: 0 | U83: 0 | V83: 2 | W83: 50 | Y83: 80 | Z83: 10000 | AA83: 10000 | AB83: 10000 | AC83: 10000 | AD83: 9196
R84: 81 | S84: 0 | T84: 0 | U84: 0 | V84: 0 | W84: 47 | Y84: 81 | Z84: 10000 | AA84: 10000 | AB84: 10000 | AC84: 10000 | AD84: 9243
R85: 82 | S85: 0 | T85: 0 | U85: 0 | V85: 0 | W85: 49 | Y85: 82 | Z85: 10000 | AA85: 10000 | AB85: 10000 | AC85: 10000 | AD85: 9292
R86: 83 | S86: 0 | T86: 0 | U86: 0 | V86: 0 | W86: 74 | Y86: 83 | Z86: 10000 | AA86: 10000 | AB86: 10000 | AC86: 10000 | AD86: 9366
R87: 84 | S87: 0 | T87: 0 | U87: 0 | V87: 0 | W87: 49 | Y87: 84 | Z87: 10000 | AA87: 10000 | AB87: 10000 | AC87: 10000 | AD87: 9415
R88: 85 | S88: 0 | T88: 0 | U88: 0 | V88: 0 | W88: 46 | Y88: 85 | Z88: 10000 | AA88: 10000 | AB88: 10000 | AC88: 10000 | AD88: 9461
R89: 86 | S89: 0 | T89: 0 | U89: 0 | V89: 0 | W89: 24 | Y89: 86 | Z89: 10000 | AA89: 10000 | AB89: 10000 | AC89: 10000 | AD89: 9485
R90: 87 | S90: 0 | T90: 0 | U90: 0 | V90: 0 | W90: 12 | Y90: 87 | Z90: 10000 | AA90: 10000 | AB90: 10000 | AC90: 10000 | AD90: 9497
R91: 88 | S91: 0 | T91: 0 | U91: 0 | V91: 0 | W91: 26 | Y91: 88 | Z91: 10000 | AA91: 10000 | AB91: 10000 | AC91: 10000 | AD91: 9523
R92: 89 | S92: 0 | T92: 0 | U92: 0 | V92: 0 | W92: 28 | Y92: 89 | Z92: 10000 | AA92: 10000 | AB92: 10000 | AC92: 10000 | AD92: 9551
R93: 90 | S93: 0 | T93: 0 | U93: 0 | V93: 0 | W93: 45 | Y93: 90 | Z93: 10000 | AA93: 10000 | AB93: 10000 | AC93: 10000 | AD93: 9596
R94: 91 | S94: 0 | T94: 0 | U94: 0 | V94: 0 | W94: 8 | Y94: 91 | Z94: 10000 | AA94: 10000 | AB94: 10000 | AC94: 10000 | AD94: 9604
R95: 92 | S95: 0 | T95: 0 | U95: 0 | V95: 0 | W95: 6 | Y95: 92 | Z95: 10000 | AA95: 10000 | AB95: 10000 | AC95: 10000 | AD95: 9610
R96: 93 | S96: 0 | T96: 0 | U96: 0 | V96: 0 | W96: 10 | Y96: 93 | Z96: 10000 | AA96: 10000 | AB96: 10000 | AC96: 10000 | AD96: 9620
R97: 94 | S97: 0 | T97: 0 | U97: 0 | V97: 0 | W97: 7 | Y97: 94 | Z97: 10000 | AA97: 10000 | AB97: 10000 | AC97: 10000 | AD97: 9627
R98: 95 | S98: 0 | T98: 0 | U98: 0 | V98: 0 | W98: 4 | Y98: 95 | Z98: 10000 | AA98: 10000 | AB98: 10000 | AC98: 10000 | AD98: 9631
R99: 96 | S99: 0 | T99: 0 | U99: 0 | V99: 0 | W99: 12 | Y99: 96 | Z99: 10000 | AA99: 10000 | AB99: 10000 | AC99: 10000 | AD99: 9643
R100: 97 | S100: 0 | T100: 0 | U100: 0 | V100: 0 | W100: 10 | Y100: 97 | Z100: 10000 | AA100: 10000 | AB100: 10000 | AC100: 10000 | AD100: 9653
R101: 98 | S101: 0 | T101: 0 | U101: 0 | V101: 0 | W101: 5 | Y101: 98 | Z101: 10000 | AA101: 10000 | AB101: 10000 | AC101: 10000 | AD101: 9658
R102: 99 | S102: 0 | T102: 0 | U102: 0 | V102: 0 | W102: 0 | Y102: 99 | Z102: 10000 | AA102: 10000 | AB102: 10000 | AC102: 10000 | AD102: 9658
R103: 100 | S103: 0 | T103: 0 | U103: 0 | V103: 0 | W103: 10 | Y103: 100 | Z103: 10000 | AA103: 10000 | AB103: 10000 | AC103: 10000 | AD103: 9668
R104: 101 | S104: 0 | T104: 0 | U104: 0 | V104: 0 | W104: 3 | Y104: 101 | Z104: 10000 | AA104: 10000 | AB104: 10000 | AC104: 10000 | AD104: 9671
R105: 102 | S105: 0 | T105: 0 | U105: 0 | V105: 0 | W105: 2 | Y105: 102 | Z105: 10000 | AA105: 10000 | AB105: 10000 | AC105: 10000 | AD105: 9673
R106: 103 | S106: 0 | T106: 0 | U106: 0 | V106: 0 | W106: 4 | Y106: 103 | Z106: 10000 | AA106: 10000 | AB106: 10000 | AC106: 10000 | AD106: 9677
R107: 104 | S107: 0 | T107: 0 | U107: 0 | V107: 0 | W107: 19 | Y107: 104 | Z107: 10000 | AA107: 10000 | AB107: 10000 | AC107: 10000 | AD107: 9696
R108: 105 | S108: 0 | T108: 0 | U108: 0 | V108: 0 | W108: 5 | Y108: 105 | Z108: 10000 | AA108: 10000 | AB108: 10000 | AC108: 10000 | AD108: 9701
R109: 106 | S109: 0 | T109: 0 | U109: 0 | V109: 0 | W109: 9 | Y109: 106 | Z109: 10000 | AA109: 10000 | AB109: 10000 | AC109: 10000 | AD109: 9710
R110: 107 | S110: 0 | T110: 0 | U110: 0 | V110: 0 | W110: 13 | Y110: 107 | Z110: 10000 | AA110: 10000 | AB110: 10000 | AC110: 10000 | AD110: 9723
R111: 108 | S111: 0 | T111: 0 | U111: 0 | V111: 0 | W111: 18 | Y111: 108 | Z111: 10000 | AA111: 10000 | AB111: 10000 | AC111: 10000 | AD111: 9741
R112: 109 | S112: 0 | T112: 0 | U112: 0 | V112: 0 | W112: 13 | Y112: 109 | Z112: 10000 | AA112: 10000 | AB112: 10000 | AC112: 10000 | AD112: 9754
R113: 110 | S113: 0 | T113: 0 | U113: 0 | V113: 0 | W113: 7 | Y113: 110 | Z113: 10000 | AA113: 10000 | AB113: 10000 | AC113: 10000 | AD113: 9761
R114: 111 | S114: 0 | T114: 0 | U114: 0 | V114: 0 | W114: 21 | Y114: 111 | Z114: 10000 | AA114: 10000 | AB114: 10000 | AC114: 10000 | AD114: 9782
R115: 112 | S115: 0 | T115: 0 | U115: 0 | V115: 0 | W115: 8 | Y115: 112 | Z115: 10000 | AA115: 10000 | AB115: 10000 | AC115: 10000 | AD115: 9790
R116: 113 | S116: 0 | T116: 0 | U116: 0 | V116: 0 | W116: 7 | Y116: 113 | Z116: 10000 | AA116: 10000 | AB116: 10000 | AC116: 10000 | AD116: 9797
R117: 114 | S117: 0 | T117: 0 | U117: 0 | V117: 0 | W117: 11 | Y117: 114 | Z117: 10000 | AA117: 10000 | AB117: 10000 | AC117: 10000 | AD117: 9808
R118: 115 | S118: 0 | T118: 0 | U118: 0 | V118: 0 | W118: 18 | Y118: 115 | Z118: 10000 | AA118: 10000 | AB118: 10000 | AC118: 10000 | AD118: 9826
R119: 116 | S119: 0 | T119: 0 | U119: 0 | V119: 0 | W119: 13 | Y119: 116 | Z119: 10000 | AA119: 10000 | AB119: 10000 | AC119: 10000 | AD119: 9839
R120: 117 | S120: 0 | T120: 0 | U120: 0 | V120: 0 | W120: 10 | Y120: 117 | Z120: 10000 | AA120: 10000 | AB120: 10000 | AC120: 10000 | AD120: 9849
R121: 118 | S121: 0 | T121: 0 | U121: 0 | V121: 0 | W121: 6 | Y121: 118 | Z121: 10000 | AA121: 10000 | AB121: 10000 | AC121: 10000 | AD121: 9855
R122: 119 | S122: 0 | T122: 0 | U122: 0 | V122: 0 | W122: 11 | Y122: 119 | Z122: 10000 | AA122: 10000 | AB122: 10000 | AC122: 10000 | AD122: 9866
R123: 120 | S123: 0 | T123: 0 | U123: 0 | V123: 0 | W123: 14 | Y123: 120 | Z123: 10000 | AA123: 10000 | AB123: 10000 | AC123: 10000 | AD123: 9880
R124: 121 | S124: 0 | T124: 0 | U124: 0 | V124: 0 | W124: 12 | Y124: 121 | Z124: 10000 | AA124: 10000 | AB124: 10000 | AC124: 10000 | AD124: 9892
R125: 122 | S125: 0 | T125: 0 | U125: 0 | V125: 0 | W125: 29 | Y125: 122 | Z125: 10000 | AA125: 10000 | AB125: 10000 | AC125: 10000 | AD125: 9921
R126: 123 | S126: 0 | T126: 0 | U126: 0 | V126: 0 | W126: 29 | Y126: 123 | Z126: 10000 | AA126: 10000 | AB126: 10000 | AC126: 10000 | AD126: 9950
R127: 124 | S127: 0 | T127: 0 | U127: 0 | V127: 0 | W127: 10 | Y127: 124 | Z127: 10000 | AA127: 10000 | AB127: 10000 | AC127: 10000 | AD127: 9960
R128: 125 | S128: 0 | T128: 0 | U128: 0 | V128: 0 | W128: 3 | Y128: 125 | Z128: 10000 | AA128: 10000 | AB128: 10000 | AC128: 10000 | AD128: 9963
R129: 126 | S129: 0 | T129: 0 | U129: 0 | V129: 0 | W129: 7 | Y129: 126 | Z129: 10000 | AA129: 10000 | AB129: 10000 | AC129: 10000 | AD129: 9970
R130: 127 | S130: 0 | T130: 0 | U130: 0 | V130: 0 | W130: 3 | Y130: 127 | Z130: 10000 | AA130: 10000 | AB130: 10000 | AC130: 10000 | AD130: 9973
R131: 128 | S131: 0 | T131: 0 | U131: 0 | V131: 0 | W131: 3 | Y131: 128 | Z131: 10000 | AA131: 10000 | AB131: 10000 | AC131: 10000 | AD131: 9976
R132: 129 | S132: 0 | T132: 0 | U132: 0 | V132: 0 | W132: 10 | Y132: 129 | Z132: 10000 | AA132: 10000 | AB132: 10000 | AC132: 10000 | AD132: 9986
R133: 130 | S133: 0 | T133: 0 | U133: 0 | V133: 0 | W133: 2 | Y133: 130 | Z133: 10000 | AA133: 10000 | AB133: 10000 | AC133: 10000 | AD133: 9988
R134: 131 | S134: 0 | T134: 0 | U134: 0 | V134: 0 | W134: 4 | Y134: 131 | Z134: 10000 | AA134: 10000 | AB134: 10000 | AC134: 10000 | AD134: 9992
R135: 132 | S135: 0 | T135: 0 | U135: 0 | V135: 0 | W135: 3 | Y135: 132 | Z135: 10000 | AA135: 10000 | AB135: 10000 | AC135: 10000 | AD135: 9995
R136: 133 | S136: 0 | T136: 0 | U136: 0 | V136: 0 | W136: 0 | Y136: 133 | Z136: 10000 | AA136: 10000 | AB136: 10000 | AC136: 10000 | AD136: 9995
R137: 134 | S137: 0 | T137: 0 | U137: 0 | V137: 0 | W137: 3 | Y137: 134 | Z137: 10000 | AA137: 10000 | AB137: 10000 | AC137: 10000 | AD137: 9998
R138: 135 | S138: 0 | T138: 0 | U138: 0 | V138: 0 | W138: 2 | Y138: 135 | Z138: 10000 | AA138: 10000 | AB138: 10000 | AC138: 10000 | AD138: 10000

Sheet Profiling
A1: 0.1348869205 | B1: 10000 | C1: 10000
A2: 0.6233354807 | B2: =RoundToSum($A$1:INDEX($A$1:$A$10000,B$1),7,TRUE,1) -> 0.1348869 | C2: =Round2Sum($A$1:INDEX($A$1:$A$10000,C$1),7,TRUE,1) -> 0.1348869
A3: 0.1759951711 | B3: 0.6233355 | C3: 0.6233355
A4: 0.9014999866 | B4: 0.1759952 | C4: 0.1759952
A5: 0.2620338798 | B5: 0.9015 | C5: 0.9015
A6: 0.5067871809 | B6: 0.2620339 | C6: 0.2620339 | F6: Time
A7: 0.9809623361 | B7: 0.5067872 | C7: 0.5067872 | F7: Size of Input Array | G7: 10 | H7: 100 | I7: 1000 | J7: 10000
A8: 0.3706316948 | B8: 0.9809623 | C8: 0.9809623 | F8: Runs | G8: 10000 | H8: 10000 | I8: 2000 | J8: 1000
A9: 0.4525391459 | B9: 0.3706317 | C9: 0.3706317 | F9: Round2Sum | G9: 0.00019586941 | H9: 0.00079402772 | I9: 0.03977508875 | J9: 2.940930496
A10: 0.3915702105 | B10: 0.4525391 | C10: 0.4525391 | F10: RoundToSum | G10: 0.00021654865 | H10: 0.00044040688 | I10: 0.0025410718 | J10: 0.0230842457
A11: 0.207716763 | B11: 0.3915702 | C11: 0.3915702 | F11: per Mio Runs
A12: 0.2970578671 | B12: 0.2077168 | C12: 0.2077168 | F12: Round2Sum | G12: =G9/G$8*1000000 -> 0.019586941 | H12: =H9/H$8*1000000 -> 0.079402772 | I12: =I9/I$8*1000000 -> 19.88754438 | J12: =J9/J$8*1000000 -> 2940.930496
A13: 0.1031922698 | B13: 0.2970579 | C13: 0.2970579 | F13: RoundToSum | G13: =G10/G$8*1000000 -> 0.021654865 | H13: =H10/H$8*1000000 -> 0.044040688 | I13: =I10/I$8*1000000 -> 1.2705359 | J13: =J10/J$8*1000000 -> 23.0842457
A14: 0.399815917 | B14: 0.1031923 | C14: 0.1031923
A15: 0.552364409 | B15: 0.3998159 | C15: 0.3998159
A16: 0.4049606323 | B16: 0.5523644 | C16: 0.5523644
A17: 0.6039468646 | B17: 0.4049606 | C17: 0.4049606
A18: 0.6741634607 | B18: 0.6039469 | C18: 0.6039469
A19: 0.6494877934 | B19: 0.6741635 | C19: 0.6741635
A20: 0.603092432 | B20: 0.6494878 | C20: 0.6494878
A21: 0.7910456061 | B21: 0.6030924 | C21: 0.6030924
A22: 0.01838481426 | B22: 0.7910456 | C22: 0.7910456
A23: 0.1502709985 | B23: 0.0183848 | C23: 0.0183848
A24: 0.7504010201 | B24: 0.150271 | C24: 0.150271
A25: 0.6501452327 | B25: 0.750401 | C25: 0.750401
A26: 0.7880097628 | B26: 0.6501452 | C26: 0.6501452
A27: 0.0506246686 | B27: 0.7880098 | C27: 0.7880098
A28: 0.6716544628 | B28: 0.0506247 | C28: 0.0506247
A29: 0.269441545 | B29: 0.6716545 | C29: 0.6716545
A30: 0.03095090389 | B30: 0.2694415 | C30: 0.2694415
A31: 0.2693110108 | B31: 0.0309509 | C31: 0.0309509
A32: 0.4230661392 | B32: 0.269311 | C32: 0.269311
A33: 0.04279440641 | B33: 0.4230661 | C33: 0.4230661
A34: 0.8781286478 | B34: 0.0427944 | C34: 0.0427944
A35: 0.4760687947 | B35: 0.8781286 | C35: 0.8781286
A36: 0.8079197407 | B36: 0.4760688 | C36: 0.4760688
A37: 0.1228527427 | B37: 0.8079197 | C37: 0.8079197
A38: 0.1840962172 | B38: 0.1228527 | C38: 0.1228527
A39: 0.1697383523 | B39: 0.1840962 | C39: 0.1840962
A40: 0.1421942711 | B40: 0.1697384 | C40: 0.1697384
A41: 0.1241795421 | B41: 0.1421943 | C41: 0.1421943
A42: 0.4176646471 | B42: 0.1241795 | C42: 0.1241795
A43: 0.006386578083 | B43: 0.4176646 | C43: 0.4176646
A44: 0.2701890469 | B44: 0.0063866 | C44: 0.0063866
A45: 0.07637685537 | B45: 0.270189 | C45: 0.270189
A46: 0.8025277853 | B46: 0.0763769 | C46: 0.0763769
A47: 0.3774319291 | B47: 0.8025278 | C47: 0.8025278
A48: 0.8301486969 | B48: 0.3774319 | C48: 0.3774319
A49: 0.6272107959 | B49: 0.8301487 | C49: 0.8301487
A50: 0.7078872919 | B50: 0.6272108 | C50: 0.6272108
A51: 0.2377694249 | B51: 0.7078873 | C51: 0.7078873
A52: 0.7698881626 | B52: 0.2377694 | C52: 0.2377694
A53: 0.4957365394 | B53: 0.7698882 | C53: 0.7698882
A54: 0.2890776396 | B54: 0.4957365 | C54: 0.4957365
A55: 0.1838956475 | B55: 0.2890776 | C55: 0.2890776
A56: 0.1124176979 | B56: 0.1838956 | C56: 0.1838956
A57: 0.1754233241 | B57: 0.1124177 | C57: 0.1124177
A58: 0.3781911135 | B58: 0.1754233 | C58: 0.1754233
A59: 0.7820337415 | B59: 0.3781911 | C59: 0.3781911
A60: 0.9715678692 | B60: 0.7820337 | C60: 0.7820337
A61: 0.8872794509 | B61: 0.9715679 | C61: 0.9715679
A62: 0.6247028112 | B62: 0.8872795 | C62: 0.8872795
A63: 0.1462584138 | B63: 0.6247028 | C63: 0.6247028
A64: 0.8176145554 | B64: 0.1462584 | C64: 0.1462584
A65: 0.782977283 | B65: 0.8176146 | C65: 0.8176146
A66: 0.886095643 | B66: 0.7829773 | C66: 0.7829773
A67: 0.766620934 | B67: 0.8860956 | C67: 0.8860956
A68: 0.9929039478 | B68: 0.7666209 | C68: 0.7666209
A69: 0.3979782462 | B69: 0.9929039 | C69: 0.9929039
A70: 0.8684853315 | B70: 0.3979782 | C70: 0.3979782
A71: 0.5872741342 | B71: 0.8684853 | C71: 0.8684853
A72: 0.4774775505 | B72: 0.5872741 | C72: 0.5872741
A73: 0.3546578288 | B73: 0.4774776 | C73: 0.4774776
A74: 0.01724541187 | B74: 0.3546578 | C74: 0.3546578
A75: 0.3345974088 | B75: 0.0172454 | C75: 0.0172454
A76: 0.9046971798 | B76: 0.3345974 | C76: 0.3345974
A77: 0.3154305816 | B77: 0.9046972 | C77: 0.9046972
A78: 0.6576322317 | B78: 0.3154306 | C78: 0.3154306
A79: 0.09532171488 | B79: 0.6576322 | C79: 0.6576322
A80: 0.8268699646 | B80: 0.0953217 | C80: 0.0953217
A81: 0.1858751178 | B81: 0.82687 | C81: 0.82687
A82: 0.3854099512 | B82: 0.1858751 | C82: 0.1858751
A83: 0.144654572 | B83: 0.38541 | C83: 0.38541
A84: 0.2308733463 | B84: 0.1446546 | C84: 0.1446546
A85: 0.5678591132 | B85: 0.2308733 | C85: 0.2308733
A86: 0.707475543 | B86: 0.5678591 | C86: 0.5678591
A87: 0.0244050622 | B87: 0.7074755 | C87: 0.7074755
A88: 0.3037800789 | B88: 0.0244051 | C88: 0.0244051
A89: 0.4626643062 | B89: 0.3037801 | C89: 0.3037801
A90: 0.9324837923 | B90: 0.4626643 | C90: 0.4626643
A91: 0.87110883 | B91: 0.9324838 | C91: 0.9324838
A92: 0.4484832287 | B92: 0.8711088 | C92: 0.8711088
A93: 0.2241114974 | B93: 0.4484832 | C93: 0.4484832
A94: 0.3114722967 | B94: 0.2241115 | C94: 0.2241115
A95: 0.9941530824 | B95: 0.3114723 | C95: 0.3114723
A96: 0.5493211746 | B96: 0.9941531 | C96: 0.9941531
A97: 0.7616855502 | B97: 0.5493212 | C97: 0.5493212
A98: 0.4284864664 | B98: 0.7616855 | C98: 0.7616855
A99: 0.7039015889 | B99: 0.4284865 | C99: 0.4284865
A100: 0.4877026081 | B100: 0.7039016 | C100: 0.7039016
A101: 0.9936603904 | B101: 0.4877026 | C101: 0.4877026
A102: 0.841204524 | B102: 0.9936604 | C102: 0.9936604
A103: 0.3898196816 | B103: 0.8412045 | C103: 0.8412045
A104: 0.9077315331 | B104: 0.3898197 | C104: 0.3898197
A105: 0.5502240062 | B105: 0.9077315 | C105: 0.9077315
A106: 0.9715625048 | B106: 0.550224 | C106: 0.550224
A107: 0.8485992551 | B107: 0.9715625 | C107: 0.9715625
A108: 0.2318322659 | B108: 0.8485993 | C108: 0.8485993
A109: 0.7266034484 | B109: 0.2318323 | C109: 0.2318323
A110: 0.2463792562 | B110: 0.7266034 | C110: 0.7266034
A111: 0.8622837663 | B111: 0.2463793 | C111: 0.2463793
A112: 0.9263744354 | B112: 0.8622838 | C112: 0.8622838
A113: 0.6861898303 | B113: 0.9263744 | C113: 0.9263744
A114: 0.4879814386 | B114: 0.6861898 | C114: 0.6861898
A115: 0.02639323473 | B115: 0.4879814 | C115: 0.4879814
A116: 0.01729798317 | B116: 0.0263932 | C116: 0.0263932
A117: 0.9136633277 | B117: 0.017298 | C117: 0.017298
A118: 0.5548285246 | B118: 0.9136633 | C118: 0.9136633
A119: 0.8280492425 | B119: 0.5548285 | C119: 0.5548285
A120: 0.855738163 | B120: 0.8280492 | C120: 0.8280492
A121: 0.9181181788 | B121: 0.8557382 | C121: 0.8557382
A122: 0.2321377993 | B122: 0.9181182 | C122: 0.9181182
A123: 0.9740999341 | B123: 0.2321378 | C123: 0.2321378
A124: 0.1336505413 | B124: 0.9740999 | C124: 0.9740999
A125: 0.1861876845 | B125: 0.1336505 | C125: 0.1336505
A126: 0.3725093603 | B126: 0.1861877 | C126: 0.1861877
A127: 0.9692450166 | B127: 0.3725094 | C127: 0.3725094
A128: 0.149435997 | B128: 0.969245 | C128: 0.969245
A129: 0.385169208 | B129: 0.149436 | C129: 0.149436
A130: 0.2865511179 | B130: 0.3851692 | C130: 0.3851692
A131: 0.9441607594 | B131: 0.2865511 | C131: 0.2865511
A132: 0.3235657215 | B132: 0.9441608 | C132: 0.9441608
A133: 0.8161491752 | B133: 0.3235657 | C133: 0.3235657
A134: 0.3835037947 | B134: 0.8161492 | C134: 0.8161492
A135: 0.7336249948 | B135: 0.3835038 | C135: 0.3835038
A136: 0.9642062187 | B136: 0.733625 | C136: 0.733625
A137: 0.1171280742 | B137: 0.9642062 | C137: 0.9642062
A138: 0.06186592579 | B138: 0.1171281 | C138: 0.1171281
A139: 0.204642117 | B139: 0.0618659 | C139: 0.0618659
A140: 0.282844305 | B140: 0.2046421 | C140: 0.2046421
A141: 0.2161454558 | B141: 0.2828443 | C141: 0.2828443
A142: 0.8500188589 | B142: 0.2161455 | C142: 0.2161455
A143: 0.8345680833 | B143: 0.8500189 | C143: 0.8500189
A144: 0.6599121094 | B144: 0.8345681 | C144: 0.8345681
A145: 0.5344049335 | B145: 0.6599121 | C145: 0.6599121
A146: 0.7968517542 | B146: 0.5344049 | C146: 0.5344049
A147: 0.5392354131 | B147: 0.7968518 | C147: 0.7968518
A148: 0.1604120731 | B148: 0.5392354 | C148: 0.5392354
A149: 0.4393991828 | B149: 0.1604121 | C149: 0.1604121
A150: 0.1123865843 | B150: 0.4393992 | C150: 0.4393992
A151: 0.7510781884 | B151: 0.1123866 | C151: 0.1123866
A152: 0.2995419502 | B152: 0.7510782 | C152: 0.7510782
A153: 0.9480349422 | B153: 0.2995419 | C153: 0.2995419
A154: 0.05840313435 | B154: 0.9480349 | C154: 0.9480349
A155: 0.7472570539 | B155: 0.0584031 | C155: 0.0584031
A156: 0.05831980705 | B156: 0.7472571 | C156: 0.7472571
A157: 0.6797580123 | B157: 0.0583198 | C157: 0.0583198
A158: 0.08906400204 | B158: 0.679758 | C158: 0.679758
A159: 0.2277842164 | B159: 0.089064 | C159: 0.089064
A160: 0.1492090225 | B160: 0.2277842 | C160: 0.2277842
A161: 0.05967825651 | B161: 0.149209 | C161: 0.149209
A162: 0.2415395975 | B162: 0.0596783 | C162: 0.0596783
A163: 0.1436484456 | B163: 0.2415396 | C163: 0.2415396
A164: 0.531743288 | B164: 0.1436484 | C164: 0.1436484
A165: 0.7716946006 | B165: 0.5317433 | C165: 0.5317433
A166: 0.7766331434 | B166: 0.7716946 | C166: 0.7716946
A167: 0.7749400735 | B167: 0.7766331 | C167: 0.7766331
A168: 0.1781516075 | B168: 0.7749401 | C168: 0.7749401
A169: 0.4616200328 | B169: 0.1781516 | C169: 0.1781516
A170: 0.06940567493 | B170: 0.46162 | C170: 0.46162
A171: 0.05897599459 | B171: 0.0694057 | C171: 0.0694057
A172: 0.08898329735 | B172: 0.058976 | C172: 0.058976
A173: 0.6903066039 | B173: 0.0889833 | C173: 0.0889833
A174: 0.7498010397 | B174: 0.6903066 | C174: 0.6903066
A175: 0.1684246659 | B175: 0.749801 | C175: 0.749801
A176: 0.5587329865 | B176: 0.1684247 | C176: 0.1684247
A177: 0.1367704272 | B177: 0.558733 | C177: 0.558733
A178: 0.09327089787 | B178: 0.1367704 | C178: 0.1367704
A179: 0.339431107 | B179: 0.0932709 | C179: 0.0932709
A180: 0.6914656162 | B180: 0.3394311 | C180: 0.3394311
A181: 0.05131667852 | B181: 0.6914656 | C181: 0.6914656
A182: 0.6613997221 | B182: 0.0513167 | C182: 0.0513167
A183: 0.9497419 | B183: 0.6613997 | C183: 0.6613997
A184: 0.1664414406 | B184: 0.9497419 | C184: 0.9497419
A185: 0.9586645961 | B185: 0.1664414 | C185: 0.1664414
A186: 0.1925297976 | B186: 0.9586646 | C186: 0.9586646
A187: 0.8468301892 | B187: 0.1925298 | C187: 0.1925298
A188: 0.2537410259 | B188: 0.8468302 | C188: 0.8468302
A189: 0.6110724807 | B189: 0.253741 | C189: 0.253741
A190: 0.7423862219 | B190: 0.6110725 | C190: 0.6110725
A191: 0.9260206819 | B191: 0.7423862 | C191: 0.7423862
A192: 0.07989025116 | B192: 0.9260207 | C192: 0.9260207
A193: 0.1914626956 | B193: 0.0798903 | C193: 0.0798903
A194: 0.07470190525 | B194: 0.1914627 | C194: 0.1914627
A195: 0.9586146474 | B195: 0.0747019 | C195: 0.0747019
A196: 0.1434853077 | B196: 0.9586146 | C196: 0.9586146
A197: 0.7665466666 | B197: 0.1434853 | C197: 0.1434853
A198: 0.3018425703 | B198: 0.7665467 | C198: 0.7665467
A199: 0.6700149179 | B199: 0.3018426 | C199: 0.3018426
A200: 0.08081769943 | B200: 0.6700149 | C200: 0.6700149
... 9801 more rows
